Workbook

Sheet 操作方法
A1: 農作業受委託(基幹３作業)に関する農用地利用集積等促進計画の入力方法
A2: 基本事項
A3: 1 | B3: 契約書(様式第14号)を作成するためのデータは全て「入力シート」から入力ください。
A4: 2 | B4: 契約書(様式第14号)の印刷は「契約書印刷シート」で行います。
A5: 3 | B5: 促進計画一覧表は「入力シート」にデータを入力することで自動的に作成されます。この促進計画一覧表は契約書(様式第14号)と併せてバンクへ提出が必要です。
A6: 4 | B6: このExcelファイルは契約開始期毎に別ファイルとし，押印後の契約書(様式第14号)と併せて農地バンクへメールで提出ください(各市町村でもExcelファイルの保管をお願いします)。
A8: 入力シートの入力方法
B9: データの入力について
B10: ① | C10: 入力シートの「Ｆ３セル」に市町村名を入力します。
B11: ② | C11: Ｄ列に契約開始期をＲ〇.▲（〇年▲月）と入力します。
B12: ③ | C12: Ｅ列の整理番号の付与は次のようなルールとします（例：作業開始期が１月の場合100～スタート，12月の場合1200～スタート 各月最大100契約以内）。
B13: ④ | C13: 電話番号（Ｈ列とＫ列）は，促進計画には表記されませんが事務連絡上必要となる場合がありますので入力ください。
B14: ⑤ | C14: Ｌ列の「地域計画の欄」は，作業を委託する農地が地域計画内の農地であれば，リストから〇を選択してください。
B15: ⑥ | C15: Ｎ列の「字」がない場合は省略可
B16: ⑦ | C16: Ｑ列の面積については，農作業を受委託する面積（作業料金算定の根拠となる面積）を入力ください。
B17: ⑧ | C17: 農作業の内容に関する項目のＲ列について，農作業を委託する作物名の組み合わせを「Ｒ６セル」に記載されている番号から選択して入力ください。
C18: 作物の組み合わせは契約期間が長期のため，その間に想定される輪作・転作作物があることを想定しています。
B19: ⑨ | C19: Ｒ列で２，４，５番を入力した場合は，Ｓ列に「その他作物名」，Ｔ列にその他作物に関する基幹３作業名を入力ください。
B20: ⑩ | C20: Ｚ列の主たる作物の作業料金は，Ｙ列に10a当たりの基幹３作業料金の合計の単価を入力すれば，筆毎の料金が自動的に計算されます。
C21: 上記の単価×面積の計算では不都合な場合には，Ｚ列の関数は削除してＺ列にほ場ごとの料金を直接入力ください。
C22: 契約書(様式第14号)にはＺ列の筆毎の作業料金が表示され，合計作業料金は契約書(様式第14号)の最下段に表示されます。
B23: ⑪ | C23: （その他作物がある場合のみ）ＡＤ列のその他作物の作業料金は，ＡＣ列に10a当たりのその他作物の基幹３作業料金の合計単価を入力すれば筆毎の料金が自動的に計算されます。
C24: 上記の単価×面積の計算では不都合な場合には，ＡＤ列の関数は削除してＡＤ列にほ場ごとの料金を直接入力ください。
C25: 契約書(様式第14号)にはＡＤ列の筆毎の作業料金が( ）の中に表示され，合計作業料金は契約書(様式第14号)の最下段の( )の中に表示されます。
B26: ⑫ | C26: ＡＢ列およびＡＦ列の支払い期限は，月（１～12）を入力ください。指定した月の月末が支払い期限として契約書(様式第14号)に表記されます。
B27: ⑬ | C27: ＡＨ列は事務局使用欄であり，備忘録として活用ください。
C28: (注)Ｙ～ＡＦ列については，入力不要の列はセルの背景色がグレーとなります（要・不要の判別はＲ列の数字で判別しています）。
A30: 契約書の印刷方法
B31: ① | C31: 印刷された契約書(様式第14号)と，このファイルの内容が異なることを防ぐため，印刷後の修正入力はしないでください（修正した場合は再度印刷し，押印徴取をお願いします）。
B32: ② | C32: 「契約書印刷」のシートを開き，「Ｚ４セル」に印刷したい契約書(様式第14号)の整理番号を入力すると，入力シートの整理番号(Ｅ列)と一致する内容が表示されます。
B33: ③ | C33: 印刷する前に修正がある場合は，必ず「入力シート」から修正入力し，再度「Ｚ４セル」に整理番号を入力し表示し直します。
B34: ④ | C34: Excelファイルの通常の印刷機能で，表示された契約書(様式第14号)を印刷します。以後，整理番号の入力と印刷を繰り返します。
A36: 促進計画一覧表
C37: Ｂ列は通し番号ですので削除しないようにご注意ください。

Sheet 入力シート
G1: 市町村毎の入力シート 兼 農地バンクの契約管理及び集計シート （基幹３作業用）
D3: 市町村名： | F3: 鹿児島市
D5: 契約開始期 | E5: 整理番号 | F5: 委託者(甲)の情報 | I5: 受託者(丙)の情報 | L5: 農作業を委託する農地の明細 | R5: 農作業の内容 | V5: 農作業を委託する期間 | Y5: 対価の支払い方法等 | AG5: 備 考 | AH5: 契約変更履歴等のメモ 内部情報としての備忘録 | AJ5: プルダウンリスト
B6: システムで使用 | F6: 氏名・名称 | G6: 住所 | H6: 電話番号 | I6: 氏名・名称 | J6: 住所 | K6: 電話番号 | L6: 地域計画 （区域内は〇） | M6: 大字 | N6: 字 | O6: 地番 | P6: 現況地目 | Q6: 受委託 面積 （㎡） | R6: 1.水稲 2.水稲＋その他 ３.さとうきび ４.さとうきび＋その他 5.その他 | S6: その他の作物名 | T6: その他作物の 基幹3作業名 | U6: エラーチェック | V6: 始期 | W6: 終期 | X6: 契約期間 | Y6: 主たる作物 | AC6: その他作物
Y7: 単価（円/10a） | Z7: 筆毎の作業料金（円） | AA7: 支払い方法 1.現金払 2.口座(振込,引き落し) | AB7: 支払期限 (毎年●月末) | AC7: 単価（円/10a） | AD7: 筆毎の作業料金（円） | AE7: 支払い方法 1.現金払 2.口座(振込,引き落し) | AF7: 支払期限 (毎年●月末)
B8: A | C8: =E8&B8 -> 100A | D8: R5.10 | E8: 100 | F8: 農地 太郎 | G8: 鹿児島市名山町１番１号 | H8: 099-000-0000 | I8: 耕地 大作 | J8: 鹿児島市鴨池新町10番１号 | K8: 099-000-0000 | L8: 〇 | M8: 名山町1 | N8: 名山堀1 | O8: 1001 | P8: 田 | Q8: 1101 | R8: 2 | S8: バレイショ | T8: 耕起・整地 播種 収穫 | U8: =IF(M8="","",IF(AND(OR(R8=2,R8=4,R8=5),S8<>"",T8<>"")=TRUE,"",IF(AND(OR(R8=1,R8=3),S8="",T8="")=TRUE,"","農作業内容の入力にミスあり"))) ->  | V8: 2023-10-01 | W8: 2033-09-30 | X8: =TEXT(DATEDIF(V8,(W8)+1,"y"),"0年;;")&TEXT(DATEDIF(V8,(W8)+1,"ym"),"0ヶ月;;") -> 10年 | Y8: 35000 | Z8: =IF(Y8="","",Q8/1000*Y8) -> 38535 | AA8: 現金払 | AB8: 10 | AC8: 20000 | AD8: =IF(AC8="","",Q8/1000*AC8) -> 22020 | AE8: 口座払(振込) | AF8: 11 | AG8: 111111 | AJ8: 1 | AK8: 〇 | AL8: 田 | AM8: 現金払
B9: B | C9: =E8&B9 -> 100B | M9: 名山町2 | N9: 名山堀2 | O9: 1002 | P9: 田 | Q9: 1102 | Z9: =IF(Y8="","",Q9/1000*Y8) -> 38570 | AD9: =IF(AC8="","",Q9/1000*AC8) -> 22040 | AJ9: 2 | AL9: 畑 | AM9: 口座払(振込)
B10: C | C10: =E8&B10 -> 100C | M10: 名山町3 | N10: 新田1 | O10: 1003 | P10: 畑 | Q10: 1103 | Z10: =IF(Y8="","",Q10/1000*Y8) -> 38605 | AD10: =IF(AC8="","",Q10/1000*AC8) -> 22060 | AJ10: 3 | AL10: 樹園地
B11: D | C11: =E8&B11 -> 100D | M11: 名山町4 | N11: 新田2 | O11: 1004 | P11: 畑 | Q11: 1104 | Z11: =IF(Y8="","",Q11/1000*Y8) -> 38640 | AD11: =IF(AC8="","",Q11/1000*AC8) -> 22080 | AJ11: 4
B12: E | C12: =E8&B12 -> 100E | M12: 名山町5 | N12: 新田3 | O12: 1005 | P12: 畑 | Q12: 1105 | Z12: =IF(Y8="","",Q12/1000*Y8) -> 38675 | AD12: =IF(AC8="","",Q12/1000*AC8) -> 22100 | AJ12: 5
B13: F | C13: =E8&B13 -> 100F | M13: 名山町6 | N13: 新田4 | O13: 1006 | P13: 畑 | Q13: 1106 | Z13: =IF(Y8="","",Q13/1000*Y8) -> 38710 | AD13: =IF(AC8="","",Q13/1000*AC8) -> 22120
B14: G | C14: =E8&B14 -> 100G | M14: 名山町7 | N14: 新田5 | O14: 1007 | P14: 樹園地 | Q14: 1107 | Z14: =IF(Y8="","",Q14/1000*Y8) -> 38745 | AD14: =IF(AC8="","",Q14/1000*AC8) -> 22140
B15: H | C15: =E8&B15 -> 100H | M15: 名山町8 | N15: 新田6 | O15: 1008 | P15: 田 | Q15: 1108 | Z15: =IF(Y8="","",Q15/1000*Y8) -> 38780 | AD15: =IF(AC8="","",Q15/1000*AC8) -> 22160
B16: I | C16: =E8&B16 -> 100I | M16: 名山町9 | N16: 新田7 | O16: 1009 | P16: 畑 | Q16: 1109 | Z16: =IF(Y8="","",Q16/1000*Y8) -> 38815 | AD16: =IF(AC8="","",Q16/1000*AC8) -> 22180
B17: J | C17: =E8&B17 -> 100J | M17: 名山町10 | N17: 新田8 | O17: 1010 | P17: 樹園地 | Q17: 1110 | Z17: =IF(Y8="","",Q17/1000*Y8) -> 38850 | AD17: =IF(AC8="","",Q17/1000*AC8) -> 22200
B18: A | C18: =E18&B18 -> 101A | D18: R5.12 | E18: 101 | F18: 農地 次郎 | G18: 鹿児島市名山町２番２号 | H18: 099-000-0000 | I18: 耕地 小作 | J18: 鹿児島市鴨池新町22番2号 | K18: 099-000-0000 | M18: 東開町1 | N18: 山田1 | O18: 2001 | P18: 田 | Q18: 1500 | R18: 4 | S18: バレイショ | T18: 耕起・整地 播種 収穫 | U18: =IF(M18="","",IF(AND(OR(R18=2,R18=4,R18=5),S18<>"",T18<>"")=TRUE,"",IF(AND(OR(R18=1,R18=3),S18="",T18="")=TRUE,"","農作業内容の入力にミスあり"))) ->  | V18: 2023-01-01 | W18: 2032-12-31 | X18: =TEXT(DATEDIF(V18,(W18)+1,"y"),"0年;;")&TEXT(DATEDIF(V18,(W18)+1,"ym"),"0ヶ月;;") -> 10年 | Y18: 17500 | Z18: =IF(Y18="","",Q18/1000*Y18) -> 26250 | AA18: 口座払(振込) | AB18: 7 | AC18: 10000 | AD18: =IF(AC18="","",Q18/1000*AC18) -> 15000 | AE18: 現金払 | AF18: 9
B19: B | C19: =E18&B19 -> 101B | M19: 東開町2 | N19: 山田2 | O19: 2002 | P19: 田 | Q19: 1600 | Z19: =IF(Y18="","",Q19/1000*Y18) -> 28000 | AD19: =IF(AC18="","",Q19/1000*AC18) -> 16000
B20: C | C20: =E18&B20 -> 101C | M20: 東開町3 | N20: 山田3 | O20: 2003 | P20: 畑 | Q20: 1700 | Z20: =IF(Y18="","",Q20/1000*Y18) -> 29750 | AD20: =IF(AC18="","",Q20/1000*AC18) -> 17000
B21: D | C21: =E18&B21 -> 101D | M21: 東開町4 | N21: 山田4 | O21: 2004 | P21: 畑 | Q21: 1800 | Z21: =IF(Y18="","",Q21/1000*Y18) -> 31500 | AD21: =IF(AC18="","",Q21/1000*AC18) -> 18000
B22: E | C22: =E18&B22 -> 101E | M22: 東開町5 | N22: 山田5 | O22: 2005 | P22: 樹園地 | Q22: 1900 | Z22: =IF(Y18="","",Q22/1000*Y18) -> 33250 | AD22: =IF(AC18="","",Q22/1000*AC18) -> 19000
B23: F | C23: =E18&B23 -> 101F | M23: 東開町6 | N23: 山田6 | O23: 2006 | P23: 樹園地 | Q23: 2000 | Z23: =IF(Y18="","",Q23/1000*Y18) -> 35000 | AD23: =IF(AC18="","",Q23/1000*AC18) -> 20000
B24: G | C24: =E18&B24 -> 101G | M24: 東開町7 | N24: 山田7 | O24: 2007 | P24: 田 | Q24: 2100 | Z24: =IF(Y18="","",Q24/1000*Y18) -> 36750 | AD24: =IF(AC18="","",Q24/1000*AC18) -> 21000
B25: H | C25: =E18&B25 -> 101H | M25: 東開町8 | N25: 山田8 | O25: 2008 | P25: 畑 | Q25: 2200 | Z25: =IF(Y18="","",Q25/1000*Y18) -> 38500 | AD25: =IF(AC18="","",Q25/1000*AC18) -> 22000
B26: I | C26: =E18&B26 -> 101I | M26: 東開町9 | N26: 山田9 | O26: 2009 | P26: 樹園地 | Q26: 2300 | Z26: =IF(Y18="","",Q26/1000*Y18) -> 40250 | AD26: =IF(AC18="","",Q26/1000*AC18) -> 23000
B27: J | C27: =E18&B27 -> 101J | M27: 東開町10 | N27: 山田10 | O27: 2010 | P27: 田 | Q27: 2400 | Z27: =IF(Y18="","",Q27/1000*Y18) -> 42000 | AD27: =IF(AC18="","",Q27/1000*AC18) -> 24000
B28: A | C28: =E28&B28 -> 102A | D28: R5.10 | E28: 102 | F28: 農地 太郎 | G28: 鹿児島市名山町１番１号 | H28: 099-000-0000 | I28: 耕地 大作 | J28: 鹿児島市鴨池新町10番１号 | K28: 099-000-0000 | L28: 〇 | M28: 名山町1 | N28: 名山堀1 | O28: 1001 | P28: 田 | Q28: 1101 | R28: 1 | U28: =IF(M28="","",IF(AND(OR(R28=2,R28=4,R28=5),S28<>"",T28<>"")=TRUE,"",IF(AND(OR(R28=1,R28=3),S28="",T28="")=TRUE,"","農作業内容の入力にミスあり"))) ->  | V28: 2023-10-01 | W28: 2033-09-30 | X28: =TEXT(DATEDIF(V28,(W28)+1,"y"),"0年;;")&TEXT(DATEDIF(V28,(W28)+1,"ym"),"0ヶ月;;") -> 10年 | Y28: 17500 | Z28: =IF(Y28="","",Q28/1000*Y28) -> 19267.5 | AA28: 口座払(振込) | AB28: 7 | AC28: 20000 | AD28: =IF(AC28="","",Q28/1000*AC28) -> 22020 | AE28: 口座払(振込) | AF28: 11 | AG28: 3333
B29: B | C29: =E28&B29 -> 102B | M29: 名山町2 | N29: 名山堀2 | O29: 1002 | P29: 田 | Q29: 1102 | Z29: =IF(Y28="","",Q29/1000*Y28) -> 19285 | AD29: =IF(AC28="","",Q29/1000*AC28) -> 22040
B30: C | C30: =E28&B30 -> 102C | M30: 名山町3 | N30: 新田1 | O30: 1003 | P30: 畑 | Q30: 1103 | Z30: =IF(Y28="","",Q30/1000*Y28) -> 19302.5 | AD30: =IF(AC28="","",Q30/1000*AC28) -> 22060
B31: D | C31: =E28&B31 -> 102D | M31: 名山町4 | N31: 新田2 | O31: 1004 | P31: 畑 | Q31: 1104 | Z31: =IF(Y28="","",Q31/1000*Y28) -> 19320 | AD31: =IF(AC28="","",Q31/1000*AC28) -> 22080
B32: E | C32: =E28&B32 -> 102E | M32: 名山町5 | N32: 新田3 | O32: 1005 | P32: 畑 | Q32: 1105 | Z32: =IF(Y28="","",Q32/1000*Y28) -> 19337.5 | AD32: =IF(AC28="","",Q32/1000*AC28) -> 22100
B33: F | C33: =E28&B33 -> 102F | M33: 名山町6 | N33: 新田4 | O33: 1006 | P33: 畑 | Q33: 2000 | Z33: =IF(Y28="","",Q33/1000*Y28) -> 35000 | AD33: =IF(AC28="","",Q33/1000*AC28) -> 40000
B34: G | C34: =E28&B34 -> 102G | M34: 名山町7 | N34: 新田5 | O34: 1007 | P34: 樹園地 | Q34: 2000 | Z34: =IF(Y28="","",Q34/1000*Y28) -> 35000 | AD34: =IF(AC28="","",Q34/1000*AC28) -> 40000
B35: H | C35: =E28&B35 -> 102H | Z35: =IF(Y28="","",Q35/1000*Y28) -> 0 | AD35: =IF(AC28="","",Q35/1000*AC28) -> 0
B36: I | C36: =E28&B36 -> 102I | Z36: =IF(Y28="","",Q36/1000*Y28) -> 0 | AD36: =IF(AC28="","",Q36/1000*AC28) -> 0
B37: J | C37: =E28&B37 -> 102J | Z37: =IF(Y28="","",Q37/1000*Y28) -> 0 | AD37: =IF(AC28="","",Q37/1000*AC28) -> 0
B38: A | C38: =E38&B38 -> A | U38: =IF(M38="","",IF(AND(OR(R38=2,R38=4,R38=5),S38<>"",T38<>"")=TRUE,"",IF(AND(OR(R38=1,R38=3),S38="",T38="")=TRUE,"","農作業内容の入力にミスあり"))) ->  | X38: =TEXT(DATEDIF(V38,(W38)+1,"y"),"0年;;")&TEXT(DATEDIF(V38,(W38)+1,"ym"),"0ヶ月;;") ->  | Z38: =IF(Y38="","",Q38/1000*Y38) ->  | AD38: =IF(AC38="","",Q38/1000*AC38) -> 
B39: B | C39: =E38&B39 -> B | Z39: =IF(Y38="","",Q39/1000*Y38) ->  | AD39: =IF(AC38="","",Q39/1000*AC38) -> 
B40: C | C40: =E38&B40 -> C | Z40: =IF(Y38="","",Q40/1000*Y38) ->  | AD40: =IF(AC38="","",Q40/1000*AC38) -> 
B41: D | C41: =E38&B41 -> D | Z41: =IF(Y38="","",Q41/1000*Y38) ->  | AD41: =IF(AC38="","",Q41/1000*AC38) -> 
B42: E | C42: =E38&B42 -> E | Z42: =IF(Y38="","",Q42/1000*Y38) ->  | AD42: =IF(AC38="","",Q42/1000*AC38) -> 
B43: F | C43: =E38&B43 -> F | Z43: =IF(Y38="","",Q43/1000*Y38) ->  | AD43: =IF(AC38="","",Q43/1000*AC38) -> 
B44: G | C44: =E38&B44 -> G | Z44: =IF(Y38="","",Q44/1000*Y38) ->  | AD44: =IF(AC38="","",Q44/1000*AC38) -> 
B45: H | C45: =E38&B45 -> H | Z45: =IF(Y38="","",Q45/1000*Y38) ->  | AD45: =IF(AC38="","",Q45/1000*AC38) -> 
B46: I | C46: =E38&B46 -> I | Z46: =IF(Y38="","",Q46/1000*Y38) ->  | AD46: =IF(AC38="","",Q46/1000*AC38) -> 
B47: J | C47: =E38&B47 -> J | Z47: =IF(Y38="","",Q47/1000*Y38) ->  | AD47: =IF(AC38="","",Q47/1000*AC38) -> 
B48: A | C48: =E48&B48 -> A | R48: 5 | U48: =IF(M48="","",IF(AND(OR(R48=2,R48=4,R48=5),S48<>"",T48<>"")=TRUE,"",IF(AND(OR(R48=1,R48=3),S48="",T48="")=TRUE,"","農作業内容の入力にミスあり"))) ->  | X48: =TEXT(DATEDIF(V48,(W48)+1,"y"),"0年;;")&TEXT(DATEDIF(V48,(W48)+1,"ym"),"0ヶ月;;") ->  | Z48: =IF(Y48="","",Q48/1000*Y48) ->  | AD48: =IF(AC48="","",Q48/1000*AC48) -> 
B49: B | C49: =E48&B49 -> B | Z49: =IF(Y48="","",Q49/1000*Y48) ->  | AD49: =IF(AC48="","",Q49/1000*AC48) -> 
B50: C | C50: =E48&B50 -> C | Z50: =IF(Y48="","",Q50/1000*Y48) ->  | AD50: =IF(AC48="","",Q50/1000*AC48) -> 
B51: D | C51: =E48&B51 -> D | Z51: =IF(Y48="","",Q51/1000*Y48) ->  | AD51: =IF(AC48="","",Q51/1000*AC48) -> 
B52: E | C52: =E48&B52 -> E | Z52: =IF(Y48="","",Q52/1000*Y48) ->  | AD52: =IF(AC48="","",Q52/1000*AC48) -> 
B53: F | C53: =E48&B53 -> F | Z53: =IF(Y48="","",Q53/1000*Y48) ->  | AD53: =IF(AC48="","",Q53/1000*AC48) -> 
B54: G | C54: =E48&B54 -> G | Z54: =IF(Y48="","",Q54/1000*Y48) ->  | AD54: =IF(AC48="","",Q54/1000*AC48) -> 
B55: H | C55: =E48&B55 -> H | Z55: =IF(Y48="","",Q55/1000*Y48) ->  | AD55: =IF(AC48="","",Q55/1000*AC48) -> 
B56: I | C56: =E48&B56 -> I | Z56: =IF(Y48="","",Q56/1000*Y48) ->  | AD56: =IF(AC48="","",Q56/1000*AC48) -> 
B57: J | C57: =E48&B57 -> J | Z57: =IF(Y48="","",Q57/1000*Y48) ->  | AD57: =IF(AC48="","",Q57/1000*AC48) -> 
B58: A | C58: =E58&B58 -> A | U58: =IF(M58="","",IF(AND(OR(R58=2,R58=4,R58=5),S58<>"",T58<>"")=TRUE,"",IF(AND(OR(R58=1,R58=3),S58="",T58="")=TRUE,"","農作業内容の入力にミスあり"))) ->  | X58: =TEXT(DATEDIF(V58,(W58)+1,"y"),"0年;;")&TEXT(DATEDIF(V58,(W58)+1,"ym"),"0ヶ月;;") ->  | Z58: =IF(Y58="","",Q58/1000*Y58) ->  | AD58: =IF(AC58="","",Q58/1000*AC58) -> 
B59: B | C59: =E58&B59 -> B | Z59: =IF(Y58="","",Q59/1000*Y58) ->  | AD59: =IF(AC58="","",Q59/1000*AC58) -> 
B60: C | C60: =E58&B60 -> C | Z60: =IF(Y58="","",Q60/1000*Y58) ->  | AD60: =IF(AC58="","",Q60/1000*AC58) -> 
B61: D | C61: =E58&B61 -> D | Z61: =IF(Y58="","",Q61/1000*Y58) ->  | AD61: =IF(AC58="","",Q61/1000*AC58) -> 
B62: E | C62: =E58&B62 -> E | Z62: =IF(Y58="","",Q62/1000*Y58) ->  | AD62: =IF(AC58="","",Q62/1000*AC58) -> 
B63: F | C63: =E58&B63 -> F | Z63: =IF(Y58="","",Q63/1000*Y58) ->  | AD63: =IF(AC58="","",Q63/1000*AC58) -> 
B64: G | C64: =E58&B64 -> G | Z64: =IF(Y58="","",Q64/1000*Y58) ->  | AD64: =IF(AC58="","",Q64/1000*AC58) -> 
B65: H | C65: =E58&B65 -> H | Z65: =IF(Y58="","",Q65/1000*Y58) ->  | AD65: =IF(AC58="","",Q65/1000*AC58) -> 
B66: I | C66: =E58&B66 -> I | Z66: =IF(Y58="","",Q66/1000*Y58) ->  | AD66: =IF(AC58="","",Q66/1000*AC58) -> 
B67: J | C67: =E58&B67 -> J | Z67: =IF(Y58="","",Q67/1000*Y58) ->  | AD67: =IF(AC58="","",Q67/1000*AC58) -> 
B68: A | C68: =E68&B68 -> A | U68: =IF(M68="","",IF(AND(OR(R68=2,R68=4,R68=5),S68<>"",T68<>"")=TRUE,"",IF(AND(OR(R68=1,R68=3),S68="",T68="")=TRUE,"","農作業内容の入力にミスあり"))) ->  | X68: =TEXT(DATEDIF(V68,(W68)+1,"y"),"0年;;")&TEXT(DATEDIF(V68,(W68)+1,"ym"),"0ヶ月;;") ->  | Z68: =IF(Y68="","",Q68/1000*Y68) ->  | AD68: =IF(AC68="","",Q68/1000*AC68) -> 
B69: B | C69: =E68&B69 -> B | Z69: =IF(Y68="","",Q69/1000*Y68) ->  | AD69: =IF(AC68="","",Q69/1000*AC68) -> 
B70: C | C70: =E68&B70 -> C | Z70: =IF(Y68="","",Q70/1000*Y68) ->  | AD70: =IF(AC68="","",Q70/1000*AC68) -> 
B71: D | C71: =E68&B71 -> D | Z71: =IF(Y68="","",Q71/1000*Y68) ->  | AD71: =IF(AC68="","",Q71/1000*AC68) -> 
B72: E | C72: =E68&B72 -> E | Z72: =IF(Y68="","",Q72/1000*Y68) ->  | AD72: =IF(AC68="","",Q72/1000*AC68) -> 
B73: F | C73: =E68&B73 -> F | Z73: =IF(Y68="","",Q73/1000*Y68) ->  | AD73: =IF(AC68="","",Q73/1000*AC68) -> 
B74: G | C74: =E68&B74 -> G | Z74: =IF(Y68="","",Q74/1000*Y68) ->  | AD74: =IF(AC68="","",Q74/1000*AC68) -> 
B75: H | C75: =E68&B75 -> H | Z75: =IF(Y68="","",Q75/1000*Y68) ->  | AD75: =IF(AC68="","",Q75/1000*AC68) -> 
B76: I | C76: =E68&B76 -> I | Z76: =IF(Y68="","",Q76/1000*Y68) ->  | AD76: =IF(AC68="","",Q76/1000*AC68) -> 
B77: J | C77: =E68&B77 -> J | Z77: =IF(Y68="","",Q77/1000*Y68) ->  | AD77: =IF(AC68="","",Q77/1000*AC68) -> 
B78: A | C78: =E78&B78 -> A | U78: =IF(M78="","",IF(AND(OR(R78=2,R78=4,R78=5),S78<>"",T78<>"")=TRUE,"",IF(AND(OR(R78=1,R78=3),S78="",T78="")=TRUE,"","農作業内容の入力にミスあり"))) ->  | X78: =TEXT(DATEDIF(V78,(W78)+1,"y"),"0年;;")&TEXT(DATEDIF(V78,(W78)+1,"ym"),"0ヶ月;;") ->  | Z78: =IF(Y78="","",Q78/1000*Y78) ->  | AD78: =IF(AC78="","",Q78/1000*AC78) -> 
B79: B | C79: =E78&B79 -> B | Z79: =IF(Y78="","",Q79/1000*Y78) ->  | AD79: =IF(AC78="","",Q79/1000*AC78) -> 
B80: C | C80: =E78&B80 -> C | Z80: =IF(Y78="","",Q80/1000*Y78) ->  | AD80: =IF(AC78="","",Q80/1000*AC78) -> 
B81: D | C81: =E78&B81 -> D | Z81: =IF(Y78="","",Q81/1000*Y78) ->  | AD81: =IF(AC78="","",Q81/1000*AC78) -> 
B82: E | C82: =E78&B82 -> E | Z82: =IF(Y78="","",Q82/1000*Y78) ->  | AD82: =IF(AC78="","",Q82/1000*AC78) -> 
B83: F | C83: =E78&B83 -> F | Z83: =IF(Y78="","",Q83/1000*Y78) ->  | AD83: =IF(AC78="","",Q83/1000*AC78) -> 
B84: G | C84: =E78&B84 -> G | Z84: =IF(Y78="","",Q84/1000*Y78) ->  | AD84: =IF(AC78="","",Q84/1000*AC78) -> 
B85: H | C85: =E78&B85 -> H | Z85: =IF(Y78="","",Q85/1000*Y78) ->  | AD85: =IF(AC78="","",Q85/1000*AC78) -> 
B86: I | C86: =E78&B86 -> I | Z86: =IF(Y78="","",Q86/1000*Y78) ->  | AD86: =IF(AC78="","",Q86/1000*AC78) -> 
B87: J | C87: =E78&B87 -> J | Z87: =IF(Y78="","",Q87/1000*Y78) ->  | AD87: =IF(AC78="","",Q87/1000*AC78) -> 
B88: A | C88: =E88&B88 -> A | U88: =IF(M88="","",IF(AND(OR(R88=2,R88=4,R88=5),S88<>"",T88<>"")=TRUE,"",IF(AND(OR(R88=1,R88=3),S88="",T88="")=TRUE,"","農作業内容の入力にミスあり"))) ->  | X88: =TEXT(DATEDIF(V88,(W88)+1,"y"),"0年;;")&TEXT(DATEDIF(V88,(W88)+1,"ym"),"0ヶ月;;") ->  | Z88: =IF(Y88="","",Q88/1000*Y88) ->  | AD88: =IF(AC88="","",Q88/1000*AC88) -> 
B89: B | C89: =E88&B89 -> B | Z89: =IF(Y88="","",Q89/1000*Y88) ->  | AD89: =IF(AC88="","",Q89/1000*AC88) -> 
B90: C | C90: =E88&B90 -> C | Z90: =IF(Y88="","",Q90/1000*Y88) ->  | AD90: =IF(AC88="","",Q90/1000*AC88) -> 
B91: D | C91: =E88&B91 -> D | Z91: =IF(Y88="","",Q91/1000*Y88) ->  | AD91: =IF(AC88="","",Q91/1000*AC88) -> 
B92: E | C92: =E88&B92 -> E | Z92: =IF(Y88="","",Q92/1000*Y88) ->  | AD92: =IF(AC88="","",Q92/1000*AC88) -> 
B93: F | C93: =E88&B93 -> F | Z93: =IF(Y88="","",Q93/1000*Y88) ->  | AD93: =IF(AC88="","",Q93/1000*AC88) -> 
B94: G | C94: =E88&B94 -> G | Z94: =IF(Y88="","",Q94/1000*Y88) ->  | AD94: =IF(AC88="","",Q94/1000*AC88) -> 
B95: H | C95: =E88&B95 -> H | Z95: =IF(Y88="","",Q95/1000*Y88) ->  | AD95: =IF(AC88="","",Q95/1000*AC88) -> 
B96: I | C96: =E88&B96 -> I | Z96: =IF(Y88="","",Q96/1000*Y88) ->  | AD96: =IF(AC88="","",Q96/1000*AC88) -> 
B97: J | C97: =E88&B97 -> J | Z97: =IF(Y88="","",Q97/1000*Y88) ->  | AD97: =IF(AC88="","",Q97/1000*AC88) -> 
B98: A | C98: =E98&B98 -> A | U98: =IF(M98="","",IF(AND(OR(R98=2,R98=4,R98=5),S98<>"",T98<>"")=TRUE,"",IF(AND(OR(R98=1,R98=3),S98="",T98="")=TRUE,"","農作業内容の入力にミスあり"))) ->  | X98: =TEXT(DATEDIF(V98,(W98)+1,"y"),"0年;;")&TEXT(DATEDIF(V98,(W98)+1,"ym"),"0ヶ月;;") ->  | Z98: =IF(Y98="","",Q98/1000*Y98) ->  | AD98: =IF(AC98="","",Q98/1000*AC98) -> 
B99: B | C99: =E98&B99 -> B | Z99: =IF(Y98="","",Q99/1000*Y98) ->  | AD99: =IF(AC98="","",Q99/1000*AC98) -> 
B100: C | C100: =E98&B100 -> C | Z100: =IF(Y98="","",Q100/1000*Y98) ->  | AD100: =IF(AC98="","",Q100/1000*AC98) -> 
B101: D | C101: =E98&B101 -> D | Z101: =IF(Y98="","",Q101/1000*Y98) ->  | AD101: =IF(AC98="","",Q101/1000*AC98) -> 
B102: E | C102: =E98&B102 -> E | Z102: =IF(Y98="","",Q102/1000*Y98) ->  | AD102: =IF(AC98="","",Q102/1000*AC98) -> 
B103: F | C103: =E98&B103 -> F | Z103: =IF(Y98="","",Q103/1000*Y98) ->  | AD103: =IF(AC98="","",Q103/1000*AC98) -> 
B104: G | C104: =E98&B104 -> G | Z104: =IF(Y98="","",Q104/1000*Y98) ->  | AD104: =IF(AC98="","",Q104/1000*AC98) -> 
B105: H | C105: =E98&B105 -> H | Z105: =IF(Y98="","",Q105/1000*Y98) ->  | AD105: =IF(AC98="","",Q105/1000*AC98) -> 
B106: I | C106: =E98&B106 -> I | Z106: =IF(Y98="","",Q106/1000*Y98) ->  | AD106: =IF(AC98="","",Q106/1000*AC98) -> 
B107: J | C107: =E98&B107 -> J | Z107: =IF(Y98="","",Q107/1000*Y98) ->  | AD107: =IF(AC98="","",Q107/1000*AC98) -> 
B108: A | C108: =E108&B108 -> A | U108: =IF(M108="","",IF(AND(OR(R108=2,R108=4,R108=5),S108<>"",T108<>"")=TRUE,"",IF(AND(OR(R108=1,R108=3),S108="",T108="")=TRUE,"","農作業内容の入力にミスあり"))) ->  | X108: =TEXT(DATEDIF(V108,(W108)+1,"y"),"0年;;")&TEXT(DATEDIF(V108,(W108)+1,"ym"),"0ヶ月;;") ->  | Z108: =IF(Y108="","",Q108/1000*Y108) ->  | AD108: =IF(AC108="","",Q108/1000*AC108) -> 
B109: B | C109: =E108&B109 -> B | Z109: =IF(Y108="","",Q109/1000*Y108) ->  | AD109: =IF(AC108="","",Q109/1000*AC108) -> 
B110: C | C110: =E108&B110 -> C | Z110: =IF(Y108="","",Q110/1000*Y108) ->  | AD110: =IF(AC108="","",Q110/1000*AC108) -> 
B111: D | C111: =E108&B111 -> D | Z111: =IF(Y108="","",Q111/1000*Y108) ->  | AD111: =IF(AC108="","",Q111/1000*AC108) -> 
B112: E | C112: =E108&B112 -> E | Z112: =IF(Y108="","",Q112/1000*Y108) ->  | AD112: =IF(AC108="","",Q112/1000*AC108) -> 
B113: F | C113: =E108&B113 -> F | Z113: =IF(Y108="","",Q113/1000*Y108) ->  | AD113: =IF(AC108="","",Q113/1000*AC108) -> 
B114: G | C114: =E108&B114 -> G | Z114: =IF(Y108="","",Q114/1000*Y108) ->  | AD114: =IF(AC108="","",Q114/1000*AC108) -> 
B115: H | C115: =E108&B115 -> H | Z115: =IF(Y108="","",Q115/1000*Y108) ->  | AD115: =IF(AC108="","",Q115/1000*AC108) -> 
B116: I | C116: =E108&B116 -> I | Z116: =IF(Y108="","",Q116/1000*Y108) ->  | AD116: =IF(AC108="","",Q116/1000*AC108) -> 
B117: J | C117: =E108&B117 -> J | Z117: =IF(Y108="","",Q117/1000*Y108) ->  | AD117: =IF(AC108="","",Q117/1000*AC108) -> 
B118: A | C118: =E118&B118 -> A | U118: =IF(M118="","",IF(AND(OR(R118=2,R118=4,R118=5),S118<>"",T118<>"")=TRUE,"",IF(AND(OR(R118=1,R118=3),S118="",T118="")=TRUE,"","農作業内容の入力にミスあり"))) ->  | X118: =TEXT(DATEDIF(V118,(W118)+1,"y"),"0年;;")&TEXT(DATEDIF(V118,(W118)+1,"ym"),"0ヶ月;;") ->  | Z118: =IF(Y118="","",Q118/1000*Y118) ->  | AD118: =IF(AC118="","",Q118/1000*AC118) -> 
B119: B | C119: =E118&B119 -> B | Z119: =IF(Y118="","",Q119/1000*Y118) ->  | AD119: =IF(AC118="","",Q119/1000*AC118) -> 
B120: C | C120: =E118&B120 -> C | Z120: =IF(Y118="","",Q120/1000*Y118) ->  | AD120: =IF(AC118="","",Q120/1000*AC118) -> 
B121: D | C121: =E118&B121 -> D | Z121: =IF(Y118="","",Q121/1000*Y118) ->  | AD121: =IF(AC118="","",Q121/1000*AC118) -> 
B122: E | C122: =E118&B122 -> E | Z122: =IF(Y118="","",Q122/1000*Y118) ->  | AD122: =IF(AC118="","",Q122/1000*AC118) -> 
B123: F | C123: =E118&B123 -> F | Z123: =IF(Y118="","",Q123/1000*Y118) ->  | AD123: =IF(AC118="","",Q123/1000*AC118) -> 
B124: G | C124: =E118&B124 -> G | Z124: =IF(Y118="","",Q124/1000*Y118) ->  | AD124: =IF(AC118="","",Q124/1000*AC118) -> 
B125: H | C125: =E118&B125 -> H | Z125: =IF(Y118="","",Q125/1000*Y118) ->  | AD125: =IF(AC118="","",Q125/1000*AC118) -> 
B126: I | C126: =E118&B126 -> I | Z126: =IF(Y118="","",Q126/1000*Y118) ->  | AD126: =IF(AC118="","",Q126/1000*AC118) -> 
B127: J | C127: =E118&B127 -> J | Z127: =IF(Y118="","",Q127/1000*Y118) ->  | AD127: =IF(AC118="","",Q127/1000*AC118) -> 
B128: A | C128: =E128&B128 -> A | U128: =IF(M128="","",IF(AND(OR(R128=2,R128=4,R128=5),S128<>"",T128<>"")=TRUE,"",IF(AND(OR(R128=1,R128=3),S128="",T128="")=TRUE,"","農作業内容の入力にミスあり"))) ->  | X128: =TEXT(DATEDIF(V128,(W128)+1,"y"),"0年;;")&TEXT(DATEDIF(V128,(W128)+1,"ym"),"0ヶ月;;") ->  | Z128: =IF(Y128="","",Q128/1000*Y128) ->  | AD128: =IF(AC128="","",Q128/1000*AC128) -> 
B129: B | C129: =E128&B129 -> B | Z129: =IF(Y128="","",Q129/1000*Y128) ->  | AD129: =IF(AC128="","",Q129/1000*AC128) -> 
B130: C | C130: =E128&B130 -> C | Z130: =IF(Y128="","",Q130/1000*Y128) ->  | AD130: =IF(AC128="","",Q130/1000*AC128) -> 
B131: D | C131: =E128&B131 -> D | Z131: =IF(Y128="","",Q131/1000*Y128) ->  | AD131: =IF(AC128="","",Q131/1000*AC128) -> 
B132: E | C132: =E128&B132 -> E | Z132: =IF(Y128="","",Q132/1000*Y128) ->  | AD132: =IF(AC128="","",Q132/1000*AC128) -> 
B133: F | C133: =E128&B133 -> F | Z133: =IF(Y128="","",Q133/1000*Y128) ->  | AD133: =IF(AC128="","",Q133/1000*AC128) -> 
B134: G | C134: =E128&B134 -> G | Z134: =IF(Y128="","",Q134/1000*Y128) ->  | AD134: =IF(AC128="","",Q134/1000*AC128) -> 
B135: H | C135: =E128&B135 -> H | Z135: =IF(Y128="","",Q135/1000*Y128) ->  | AD135: =IF(AC128="","",Q135/1000*AC128) -> 
B136: I | C136: =E128&B136 -> I | Z136: =IF(Y128="","",Q136/1000*Y128) ->  | AD136: =IF(AC128="","",Q136/1000*AC128) -> 
B137: J | C137: =E128&B137 -> J | Z137: =IF(Y128="","",Q137/1000*Y128) ->  | AD137: =IF(AC128="","",Q137/1000*AC128) -> 
B138: A | C138: =E138&B138 -> A | U138: =IF(M138="","",IF(AND(OR(R138=2,R138=4,R138=5),S138<>"",T138<>"")=TRUE,"",IF(AND(OR(R138=1,R138=3),S138="",T138="")=TRUE,"","農作業内容の入力にミスあり"))) ->  | X138: =TEXT(DATEDIF(V138,(W138)+1,"y"),"0年;;")&TEXT(DATEDIF(V138,(W138)+1,"ym"),"0ヶ月;;") ->  | Z138: =IF(Y138="","",Q138/1000*Y138) ->  | AD138: =IF(AC138="","",Q138/1000*AC138) -> 
B139: B | C139: =E138&B139 -> B | Z139: =IF(Y138="","",Q139/1000*Y138) ->  | AD139: =IF(AC138="","",Q139/1000*AC138) -> 
B140: C | C140: =E138&B140 -> C | Z140: =IF(Y138="","",Q140/1000*Y138) ->  | AD140: =IF(AC138="","",Q140/1000*AC138) -> 
B141: D | C141: =E138&B141 -> D | Z141: =IF(Y138="","",Q141/1000*Y138) ->  | AD141: =IF(AC138="","",Q141/1000*AC138) -> 
B142: E | C142: =E138&B142 -> E | Z142: =IF(Y138="","",Q142/1000*Y138) ->  | AD142: =IF(AC138="","",Q142/1000*AC138) -> 
B143: F | C143: =E138&B143 -> F | Z143: =IF(Y138="","",Q143/1000*Y138) ->  | AD143: =IF(AC138="","",Q143/1000*AC138) -> 
B144: G | C144: =E138&B144 -> G | Z144: =IF(Y138="","",Q144/1000*Y138) ->  | AD144: =IF(AC138="","",Q144/1000*AC138) -> 
B145: H | C145: =E138&B145 -> H | Z145: =IF(Y138="","",Q145/1000*Y138) ->  | AD145: =IF(AC138="","",Q145/1000*AC138) -> 
B146: I | C146: =E138&B146 -> I | Z146: =IF(Y138="","",Q146/1000*Y138) ->  | AD146: =IF(AC138="","",Q146/1000*AC138) -> 
B147: J | C147: =E138&B147 -> J | Z147: =IF(Y138="","",Q147/1000*Y138) ->  | AD147: =IF(AC138="","",Q147/1000*AC138) -> 
B148: A | C148: =E148&B148 -> A | U148: =IF(M148="","",IF(AND(OR(R148=2,R148=4,R148=5),S148<>"",T148<>"")=TRUE,"",IF(AND(OR(R148=1,R148=3),S148="",T148="")=TRUE,"","農作業内容の入力にミスあり"))) ->  | X148: =TEXT(DATEDIF(V148,(W148)+1,"y"),"0年;;")&TEXT(DATEDIF(V148,(W148)+1,"ym"),"0ヶ月;;") ->  | Z148: =IF(Y148="","",Q148/1000*Y148) ->  | AD148: =IF(AC148="","",Q148/1000*AC148) -> 
B149: B | C149: =E148&B149 -> B | Z149: =IF(Y148="","",Q149/1000*Y148) ->  | AD149: =IF(AC148="","",Q149/1000*AC148) -> 
B150: C | C150: =E148&B150 -> C | Z150: =IF(Y148="","",Q150/1000*Y148) ->  | AD150: =IF(AC148="","",Q150/1000*AC148) -> 
B151: D | C151: =E148&B151 -> D | Z151: =IF(Y148="","",Q151/1000*Y148) ->  | AD151: =IF(AC148="","",Q151/1000*AC148) -> 
B152: E | C152: =E148&B152 -> E | Z152: =IF(Y148="","",Q152/1000*Y148) ->  | AD152: =IF(AC148="","",Q152/1000*AC148) -> 
B153: F | C153: =E148&B153 -> F | Z153: =IF(Y148="","",Q153/1000*Y148) ->  | AD153: =IF(AC148="","",Q153/1000*AC148) -> 
B154: G | C154: =E148&B154 -> G | Z154: =IF(Y148="","",Q154/1000*Y148) ->  | AD154: =IF(AC148="","",Q154/1000*AC148) -> 
B155: H | C155: =E148&B155 -> H | Z155: =IF(Y148="","",Q155/1000*Y148) ->  | AD155: =IF(AC148="","",Q155/1000*AC148) -> 
B156: I | C156: =E148&B156 -> I | Z156: =IF(Y148="","",Q156/1000*Y148) ->  | AD156: =IF(AC148="","",Q156/1000*AC148) -> 
B157: J | C157: =E148&B157 -> J | Z157: =IF(Y148="","",Q157/1000*Y148) ->  | AD157: =IF(AC148="","",Q157/1000*AC148) -> 
B158: A | C158: =E158&B158 -> A | U158: =IF(M158="","",IF(AND(OR(R158=2,R158=4,R158=5),S158<>"",T158<>"")=TRUE,"",IF(AND(OR(R158=1,R158=3),S158="",T158="")=TRUE,"","農作業内容の入力にミスあり"))) ->  | X158: =TEXT(DATEDIF(V158,(W158)+1,"y"),"0年;;")&TEXT(DATEDIF(V158,(W158)+1,"ym"),"0ヶ月;;") ->  | Z158: =IF(Y158="","",Q158/1000*Y158) ->  | AD158: =IF(AC158="","",Q158/1000*AC158) -> 
B159: B | C159: =E158&B159 -> B | Z159: =IF(Y158="","",Q159/1000*Y158) ->  | AD159: =IF(AC158="","",Q159/1000*AC158) -> 
B160: C | C160: =E158&B160 -> C | Z160: =IF(Y158="","",Q160/1000*Y158) ->  | AD160: =IF(AC158="","",Q160/1000*AC158) -> 
B161: D | C161: =E158&B161 -> D | Z161: =IF(Y158="","",Q161/1000*Y158) ->  | AD161: =IF(AC158="","",Q161/1000*AC158) -> 
B162: E | C162: =E158&B162 -> E | Z162: =IF(Y158="","",Q162/1000*Y158) ->  | AD162: =IF(AC158="","",Q162/1000*AC158) -> 
B163: F | C163: =E158&B163 -> F | Z163: =IF(Y158="","",Q163/1000*Y158) ->  | AD163: =IF(AC158="","",Q163/1000*AC158) -> 
B164: G | C164: =E158&B164 -> G | Z164: =IF(Y158="","",Q164/1000*Y158) ->  | AD164: =IF(AC158="","",Q164/1000*AC158) -> 
B165: H | C165: =E158&B165 -> H | Z165: =IF(Y158="","",Q165/1000*Y158) ->  | AD165: =IF(AC158="","",Q165/1000*AC158) -> 
B166: I | C166: =E158&B166 -> I | Z166: =IF(Y158="","",Q166/1000*Y158) ->  | AD166: =IF(AC158="","",Q166/1000*AC158) -> 
B167: J | C167: =E158&B167 -> J | Z167: =IF(Y158="","",Q167/1000*Y158) ->  | AD167: =IF(AC158="","",Q167/1000*AC158) -> 
B168: A | C168: =E168&B168 -> A | U168: =IF(M168="","",IF(AND(OR(R168=2,R168=4,R168=5),S168<>"",T168<>"")=TRUE,"",IF(AND(OR(R168=1,R168=3),S168="",T168="")=TRUE,"","農作業内容の入力にミスあり"))) ->  | X168: =TEXT(DATEDIF(V168,(W168)+1,"y"),"0年;;")&TEXT(DATEDIF(V168,(W168)+1,"ym"),"0ヶ月;;") ->  | Z168: =IF(Y168="","",Q168/1000*Y168) ->  | AD168: =IF(AC168="","",Q168/1000*AC168) -> 
B169: B | C169: =E168&B169 -> B | Z169: =IF(Y168="","",Q169/1000*Y168) ->  | AD169: =IF(AC168="","",Q169/1000*AC168) -> 
B170: C | C170: =E168&B170 -> C | Z170: =IF(Y168="","",Q170/1000*Y168) ->  | AD170: =IF(AC168="","",Q170/1000*AC168) -> 
B171: D | C171: =E168&B171 -> D | Z171: =IF(Y168="","",Q171/1000*Y168) ->  | AD171: =IF(AC168="","",Q171/1000*AC168) -> 
B172: E | C172: =E168&B172 -> E | Z172: =IF(Y168="","",Q172/1000*Y168) ->  | AD172: =IF(AC168="","",Q172/1000*AC168) -> 
B173: F | C173: =E168&B173 -> F | Z173: =IF(Y168="","",Q173/1000*Y168) ->  | AD173: =IF(AC168="","",Q173/1000*AC168) -> 
B174: G | C174: =E168&B174 -> G | Z174: =IF(Y168="","",Q174/1000*Y168) ->  | AD174: =IF(AC168="","",Q174/1000*AC168) -> 
B175: H | C175: =E168&B175 -> H | Z175: =IF(Y168="","",Q175/1000*Y168) ->  | AD175: =IF(AC168="","",Q175/1000*AC168) -> 
B176: I | C176: =E168&B176 -> I | Z176: =IF(Y168="","",Q176/1000*Y168) ->  | AD176: =IF(AC168="","",Q176/1000*AC168) -> 
B177: J | C177: =E168&B177 -> J | Z177: =IF(Y168="","",Q177/1000*Y168) ->  | AD177: =IF(AC168="","",Q177/1000*AC168) -> 
B178: A | C178: =E178&B178 -> A | U178: =IF(M178="","",IF(AND(OR(R178=2,R178=4,R178=5),S178<>"",T178<>"")=TRUE,"",IF(AND(OR(R178=1,R178=3),S178="",T178="")=TRUE,"","農作業内容の入力にミスあり"))) ->  | X178: =TEXT(DATEDIF(V178,(W178)+1,"y"),"0年;;")&TEXT(DATEDIF(V178,(W178)+1,"ym"),"0ヶ月;;") ->  | Z178: =IF(Y178="","",Q178/1000*Y178) ->  | AD178: =IF(AC178="","",Q178/1000*AC178) -> 
B179: B | C179: =E178&B179 -> B | Z179: =IF(Y178="","",Q179/1000*Y178) ->  | AD179: =IF(AC178="","",Q179/1000*AC178) -> 
B180: C | C180: =E178&B180 -> C | Z180: =IF(Y178="","",Q180/1000*Y178) ->  | AD180: =IF(AC178="","",Q180/1000*AC178) -> 
B181: D | C181: =E178&B181 -> D | Z181: =IF(Y178="","",Q181/1000*Y178) ->  | AD181: =IF(AC178="","",Q181/1000*AC178) -> 
B182: E | C182: =E178&B182 -> E | Z182: =IF(Y178="","",Q182/1000*Y178) ->  | AD182: =IF(AC178="","",Q182/1000*AC178) -> 
B183: F | C183: =E178&B183 -> F | Z183: =IF(Y178="","",Q183/1000*Y178) ->  | AD183: =IF(AC178="","",Q183/1000*AC178) -> 
B184: G | C184: =E178&B184 -> G | Z184: =IF(Y178="","",Q184/1000*Y178) ->  | AD184: =IF(AC178="","",Q184/1000*AC178) -> 
B185: H | C185: =E178&B185 -> H | Z185: =IF(Y178="","",Q185/1000*Y178) ->  | AD185: =IF(AC178="","",Q185/1000*AC178) -> 
B186: I | C186: =E178&B186 -> I | Z186: =IF(Y178="","",Q186/1000*Y178) ->  | AD186: =IF(AC178="","",Q186/1000*AC178) -> 
B187: J | C187: =E178&B187 -> J | Z187: =IF(Y178="","",Q187/1000*Y178) ->  | AD187: =IF(AC178="","",Q187/1000*AC178) -> 
B188: A | C188: =E188&B188 -> A | U188: =IF(M188="","",IF(AND(OR(R188=2,R188=4,R188=5),S188<>"",T188<>"")=TRUE,"",IF(AND(OR(R188=1,R188=3),S188="",T188="")=TRUE,"","農作業内容の入力にミスあり"))) ->  | X188: =TEXT(DATEDIF(V188,(W188)+1,"y"),"0年;;")&TEXT(DATEDIF(V188,(W188)+1,"ym"),"0ヶ月;;") ->  | Z188: =IF(Y188="","",Q188/1000*Y188) ->  | AD188: =IF(AC188="","",Q188/1000*AC188) -> 
B189: B | C189: =E188&B189 -> B | Z189: =IF(Y188="","",Q189/1000*Y188) ->  | AD189: =IF(AC188="","",Q189/1000*AC188) -> 
B190: C | C190: =E188&B190 -> C | Z190: =IF(Y188="","",Q190/1000*Y188) ->  | AD190: =IF(AC188="","",Q190/1000*AC188) -> 
B191: D | C191: =E188&B191 -> D | Z191: =IF(Y188="","",Q191/1000*Y188) ->  | AD191: =IF(AC188="","",Q191/1000*AC188) -> 
B192: E | C192: =E188&B192 -> E | Z192: =IF(Y188="","",Q192/1000*Y188) ->  | AD192: =IF(AC188="","",Q192/1000*AC188) -> 
B193: F | C193: =E188&B193 -> F | Z193: =IF(Y188="","",Q193/1000*Y188) ->  | AD193: =IF(AC188="","",Q193/1000*AC188) -> 
B194: G | C194: =E188&B194 -> G | Z194: =IF(Y188="","",Q194/1000*Y188) ->  | AD194: =IF(AC188="","",Q194/1000*AC188) -> 
B195: H | C195: =E188&B195 -> H | Z195: =IF(Y188="","",Q195/1000*Y188) ->  | AD195: =IF(AC188="","",Q195/1000*AC188) -> 
B196: I | C196: =E188&B196 -> I | Z196: =IF(Y188="","",Q196/1000*Y188) ->  | AD196: =IF(AC188="","",Q196/1000*AC188) -> 
B197: J | C197: =E188&B197 -> J | Z197: =IF(Y188="","",Q197/1000*Y188) ->  | AD197: =IF(AC188="","",Q197/1000*AC188) -> 
B198: A | C198: =E198&B198 -> A | U198: =IF(M198="","",IF(AND(OR(R198=2,R198=4,R198=5),S198<>"",T198<>"")=TRUE,"",IF(AND(OR(R198=1,R198=3),S198="",T198="")=TRUE,"","農作業内容の入力にミスあり"))) ->  | X198: =TEXT(DATEDIF(V198,(W198)+1,"y"),"0年;;")&TEXT(DATEDIF(V198,(W198)+1,"ym"),"0ヶ月;;") ->  | Z198: =IF(Y198="","",Q198/1000*Y198) ->  | AD198: =IF(AC198="","",Q198/1000*AC198) -> 
B199: B | C199: =E198&B199 -> B | Z199: =IF(Y198="","",Q199/1000*Y198) ->  | AD199: =IF(AC198="","",Q199/1000*AC198) -> 
B200: C | C200: =E198&B200 -> C | Z200: =IF(Y198="","",Q200/1000*Y198) ->  | AD200: =IF(AC198="","",Q200/1000*AC198) -> 
B201: D | C201: =E198&B201 -> D | Z201: =IF(Y198="","",Q201/1000*Y198) ->  | AD201: =IF(AC198="","",Q201/1000*AC198) -> 
B202: E | C202: =E198&B202 -> E | Z202: =IF(Y198="","",Q202/1000*Y198) ->  | AD202: =IF(AC198="","",Q202/1000*AC198) -> 
... 64 more rows

Sheet 契約書印刷
A2: （様式第14号） | C2: 農用地利用集積等促進計画（農作業受委託(基幹３作業)） | AB2: システム使用欄
A4: １ 各筆明細 | C4: 農地の所在地 | E4: =入力シート!F3 -> 鹿児島市 | T4: 契約開始期 | W4: =VLOOKUP(AB4,入力シート!C:D,2,FALSE) -> R5.10 | X4: 整理番号 | Z4: 102 | AB4: =$Z$4&"A" -> 102A | AC4: =VLOOKUP($AB$4,入力シート!$C:$AG,10,FALSE) -> 〇
A5: =IF(AC4="〇","☑ 地域計画","☐ 地域計画") -> ☑ 地域計画 | B5: =IF(#REF!="○","☑ 現金払","☐ 現金払") ->  | C5: 農地中間管理機構に農作業の委託をする者の氏名又は名称（甲） | I5: =VLOOKUP(AB4,入力シート!C:AG,4,FALSE) -> 農地 太郎 | M5: この計画に同意する | P5: 住所 | Q5: =VLOOKUP(AB4,入力シート!C:AG,5,FALSE) -> 鹿児島市名山町１番１号 | AB5: =$Z$4&"B" -> 102B
N6: 〔同意印〕 | AB6: =$Z$4&"C" -> 102C | AC6: =VLOOKUP($AB$4,入力シート!$C:$AG,16,FALSE) -> 1
C7: 鹿児島県農地中間管理機構 （乙） | I7: 公益財団法人 鹿児島県地域振興公社 理事長 満薗 秀彦 | M7: この計画に同意する | P7: 住所 | Q7: 鹿児島市名山町４番３号 | AB7: =$Z$4&"D" -> 102D
N8: 〔同意印〕 | AB8: =$Z$4&"E" -> 102E
C9: 農地中間管理機構から農作業の委託を受ける者の氏名又は名称（丙） | I9: =VLOOKUP(AB4,入力シート!C:AG,7,FALSE) -> 耕地 大作 | M9: この計画に同意する | P9: 住所 | Q9: =VLOOKUP(AB4,入力シート!C:AG,8,FALSE) -> 鹿児島市鴨池新町10番１号 | AB9: =$Z$4&"F" -> 102F
N10: 〔同意印〕 | AB10: =$Z$4&"G" -> 102G
A11: 農作業の委託をする土地（Ａ） | H11: （甲）が（乙）に委託し，（乙）が（丙）に委託する農作業（Ｂ） | P11: 対価の支払（Ｃ） | W11: 備 考 | AB11: =$Z$4&"H" -> 102H
A12: 所 在 | D12: 現 況 地 目 | E12: 受委託面積 （㎡） | H12: 農作業受委託の形態 | I12: 農作業 の内容 | J12: 始 期 | K12: 終 期 | L12: 契約期間 | M12: 対価（円） 主たる作物 (その他作物) | P12: 支払い方法 | AB12: =$Z$4&"I" -> 102I
A13: 大 字 | B13: 字 | C13: 地 番 | AB13: =$Z$4&"J" -> 102J
A14: =VLOOKUP($AB$4,入力シート!$C:$AG,11,FALSE) -> 名山町1 | B14: =VLOOKUP($AB$4,入力シート!$C:$AG,12,FALSE) -> 名山堀1 | C14: =VLOOKUP($AB$4,入力シート!$C:$AG,13,FALSE) -> 1001 | D14: =VLOOKUP($AB$4,入力シート!$C:$AG,14,FALSE) -> 田 | E14: =VLOOKUP($AB$4,入力シート!$C:$AG,15,FALSE) -> 1101 | H14: 基幹３作業以上の受委託 | I14: =IF(AC6<=2,"1 水稲 耕起・代掻，田植，収穫，脱穀","") -> 1 水稲 耕起・代掻，田植，収穫，脱穀 | J14: =VLOOKUP($AB$4,入力シート!$C:$AG,20,FALSE) -> 2023-10-01 | K14: =VLOOKUP($AB$4,入力シート!$C:$AG,21,FALSE) -> 2033-09-30 | L14: =VLOOKUP($AB$4,入力シート!$C:$AG,22,FALSE) -> 10年 | N14: =VLOOKUP($AB4,入力シート!$C:$AG,24,FALSE) -> 19267.5 | P14: 農作業の対価の支払いは下記の方法により(甲)が(丙)に対して支払う。 （Ｂ）欄の対価は主たる作物の対価であり，その他作物の対価は( )内の金額である。
M15: ( | N15: =VLOOKUP($AB4,入力シート!$C:$AG,28,FALSE) -> 22020 | O15: ) | W15: =VLOOKUP($AB$4,入力シート!$C:$AG,31,FALSE) -> 3333
A16: =VLOOKUP($AB$5,入力シート!$C:$AG,11,FALSE) -> 名山町2 | B16: =VLOOKUP($AB$5,入力シート!$C:$AG,12,FALSE) -> 名山堀2 | C16: =VLOOKUP($AB$5,入力シート!$C:$AG,13,FALSE) -> 1002 | D16: =VLOOKUP($AB$5,入力シート!$C:$AG,14,FALSE) -> 田 | E16: =VLOOKUP($AB$5,入力シート!$C:$AG,15,FALSE) -> 1102 | N16: =VLOOKUP($AB5,入力シート!$C:$AG,24,FALSE) -> 19285
M17: ( | N17: =VLOOKUP($AB5,入力シート!$C:$AG,28,FALSE) -> 22040 | O17: )
A18: =VLOOKUP($AB$6,入力シート!$C:$AG,11,FALSE) -> 名山町3 | B18: =VLOOKUP($AB$6,入力シート!$C:$AG,12,FALSE) -> 新田1 | C18: =VLOOKUP($AB$6,入力シート!$C:$AG,13,FALSE) -> 1003 | D18: =VLOOKUP($AB$6,入力シート!$C:$AG,14,FALSE) -> 畑 | E18: =VLOOKUP($AB$6,入力シート!$C:$AG,15,FALSE) -> 1103 | N18: =VLOOKUP($AB6,入力シート!$C:$AG,24,FALSE) -> 19302.5
M19: ( | N19: =VLOOKUP($AB6,入力シート!$C:$AG,28,FALSE) -> 22060 | O19: ) | P19: =IF(AC6<=2,"水稲",IF(AC6<=4,"さとうきび","")) -> 水稲
A20: =VLOOKUP($AB$7,入力シート!$C:$AG,11,FALSE) -> 名山町4 | B20: =VLOOKUP($AB$7,入力シート!$C:$AG,12,FALSE) -> 新田2 | C20: =VLOOKUP($AB$7,入力シート!$C:$AG,13,FALSE) -> 1004 | D20: =VLOOKUP($AB$7,入力シート!$C:$AG,14,FALSE) -> 畑 | E20: =VLOOKUP($AB$7,入力シート!$C:$AG,15,FALSE) -> 1104 | I20: =IF(AC6=5,"",IF(AC6>=3,"２ さとうきび ➀耕起･整地②定植③株出管理④中耕･培土⑤収穫➅防除の内３作業","")) ->  | N20: =VLOOKUP($AB7,入力シート!$C:$AG,24,FALSE) -> 19320 | P20: =VLOOKUP($AB$4,入力シート!$C:$AG,25,FALSE) -> 口座払(振込)
M21: ( | N21: =VLOOKUP($AB7,入力シート!$C:$AG,28,FALSE) -> 22080 | O21: ) | P21: =VLOOKUP($AB$4,入力シート!$C:$AG,26,FALSE) -> 7
A22: =VLOOKUP($AB$8,入力シート!$C:$AG,11,FALSE) -> 名山町5 | B22: =VLOOKUP($AB$8,入力シート!$C:$AG,12,FALSE) -> 新田3 | C22: =VLOOKUP($AB$8,入力シート!$C:$AG,13,FALSE) -> 1005 | D22: =VLOOKUP($AB$8,入力シート!$C:$AG,14,FALSE) -> 畑 | E22: =VLOOKUP($AB$8,入力シート!$C:$AG,15,FALSE) -> 1105 | N22: =VLOOKUP($AB8,入力シート!$C:$AG,24,FALSE) -> 19337.5
M23: ( | N23: =VLOOKUP($AB8,入力シート!$C:$AG,28,FALSE) -> 22100 | O23: )
A24: =VLOOKUP($AB$9,入力シート!$C:$AG,11,FALSE) -> 名山町6 | B24: =VLOOKUP($AB$9,入力シート!$C:$AG,12,FALSE) -> 新田4 | C24: =VLOOKUP($AB$9,入力シート!$C:$AG,13,FALSE) -> 1006 | D24: =VLOOKUP($AB$9,入力シート!$C:$AG,14,FALSE) -> 畑 | E24: =VLOOKUP($AB$9,入力シート!$C:$AG,15,FALSE) -> 2000 | N24: =VLOOKUP($AB9,入力シート!$C:$AG,24,FALSE) -> 35000 | P24: =VLOOKUP($AB$4,入力シート!$C:$AG,17,FALSE) -> 0
M25: ( | N25: =VLOOKUP($AB9,入力シート!$C:$AG,28,FALSE) -> 40000 | O25: ) | P25: =VLOOKUP($AB$4,入力シート!$C:$AG,29,FALSE) -> 口座払(振込)
A26: =VLOOKUP($AB$10,入力シート!$C:$AG,11,FALSE) -> 名山町7 | B26: =VLOOKUP($AB$10,入力シート!$C:$AG,12,FALSE) -> 新田5 | C26: =VLOOKUP($AB$10,入力シート!$C:$AG,13,FALSE) -> 1007 | D26: =VLOOKUP($AB$10,入力シート!$C:$AG,14,FALSE) -> 樹園地 | E26: =VLOOKUP($AB$10,入力シート!$C:$AG,15,FALSE) -> 2000 | I26: =IF(AC6=2,"3 その他",IF(AC6>=4,"３ その他","")) ->  | N26: =VLOOKUP($AB10,入力シート!$C:$AG,24,FALSE) -> 35000 | P26: =VLOOKUP($AB$4,入力シート!$C:$AG,30,FALSE) -> 11
M27: ( | N27: =VLOOKUP($AB10,入力シート!$C:$AG,28,FALSE) -> 40000 | O27: )
A28: =VLOOKUP($AB$11,入力シート!$C:$AG,11,FALSE) -> 0 | B28: =VLOOKUP($AB$11,入力シート!$C:$AG,12,FALSE) -> 0 | C28: =VLOOKUP($AB$11,入力シート!$C:$AG,13,FALSE) -> 0 | D28: =VLOOKUP($AB$11,入力シート!$C:$AG,14,FALSE) -> 0 | E28: =VLOOKUP($AB$11,入力シート!$C:$AG,15,FALSE) -> 0 | I28: =VLOOKUP($AB$4,入力シート!$C:$AG,17,FALSE) -> 0 | N28: =VLOOKUP($AB11,入力シート!$C:$AG,24,FALSE) -> 0
M29: ( | N29: =VLOOKUP($AB11,入力シート!$C:$AG,28,FALSE) -> 0 | O29: )
A30: =VLOOKUP($AB$12,入力シート!$C:$AG,11,FALSE) -> 0 | B30: =VLOOKUP($AB$12,入力シート!$C:$AG,12,FALSE) -> 0 | C30: =VLOOKUP($AB$12,入力シート!$C:$AG,13,FALSE) -> 0 | D30: =VLOOKUP($AB$12,入力シート!$C:$AG,14,FALSE) -> 0 | E30: =VLOOKUP($AB$12,入力シート!$C:$AG,15,FALSE) -> 0 | I30: =VLOOKUP($AB$4,入力シート!$C:$AG,18,FALSE) -> 0 | N30: =VLOOKUP($AB12,入力シート!$C:$AG,24,FALSE) -> 0
M31: ( | N31: =VLOOKUP($AB12,入力シート!$C:$AG,28,FALSE) -> 0 | O31: )
A32: =VLOOKUP($AB$13,入力シート!$C:$AG,11,FALSE) -> 0 | B32: =VLOOKUP($AB$13,入力シート!$C:$AG,12,FALSE) -> 0 | C32: =VLOOKUP($AB$13,入力シート!$C:$AG,13,FALSE) -> 0 | D32: =VLOOKUP($AB$13,入力シート!$C:$AG,14,FALSE) -> 0 | E32: =VLOOKUP($AB$13,入力シート!$C:$AG,15,FALSE) -> 0 | N32: =VLOOKUP($AB13,入力シート!$C:$AG,24,FALSE) -> 0
M33: ( | N33: =VLOOKUP($AB13,入力シート!$C:$AG,28,FALSE) -> 0 | O33: )
A34: 合 計 | E34: =SUM(E14:G33) -> 9515 | N34: =N14+N16+N18+N20+N22+N24+N26+N28+N30+N32 -> 166512.5
M35: ( | N35: =N15+N19+N21+N23+N25+N27+N29+N31+N33+N17 -> 190300 | O35: )
A44: ２ 記載注意 | L44: ウ 契約期間の途中において甲または丙が止む負えない理由で契約を解約したい場合は，受託年度の開始３か月前に申
A45: （１）この各筆明細は３部作成し，農作業受委託の各当事者が保管する。 | L45: し出ることを原則とし，それによりがたい場合は速やかに申し出て，甲・乙・丙の同意のもとに甲と乙，乙と丙の契
A46: （２）地域計画の範囲内であれば，☑を付ける。 | L46: 約を同時に解約する。
A47: （３）（Ａ）欄の「面積」は受委託面積を記入する。 | L47: （３）善管注意義務
A48: （４）（Ｂ）欄の「農作業の内容」は，「耕起・代かき」「収穫・脱穀・調整」等と複数記載できることとし基幹３作業 | L48: 丙は，善良なる管理者の注意をもって甲が求める結果が得られるよう努めるものとする。
A49: を記載する。 | L49: （４）履行状況の報告
A50: （５）（Ｂ）欄の「契約期間」は，「○年」と記載する。 | L50: ア 丙は，受託した農作業の経過及び結果について，書面等により作業内容ごとに記録するものとする。
A51: （６）（Ｂ）欄の「対価」は，委託する主たる作物の作業の対価の合計を記載する。主たる作物以外にその他作物の作業 | L51: イ 丙は，甲又は乙からの請求があるときは，受託した農作業の履行状況について，甲または乙に報告するものとす
A52: も委託する場合は，その他作物の対価の合計は（ ）内に記入する。 | L52: る。
A53: （７）（Ｃ）欄の「対価の支払」は，対価の支払期限と，支払方法（現金払，口座払等）を記載する。 | L53: （５）農作業の委託に伴う対価に関する債権及び債務の取扱い
L54: 本計画により委託される農作業の対価に関する債権及び債務は，甲と丙の間で存在し，乙は対価の受領及び支払に
A55: ３ 共通事項 | L55: 関する一切の債権及び債務を有しない。
A56: この農用地利用集積等促進計画（以下「本計画」という。）の定めるところにより契約が締結されたとみなされる農 | L56: （６）農作業の委託に関する対価の増減額請求
A57: 作業の委託は，１の各筆明細に定めるもののほか，次に定めるところによる。 | L57: 甲，乙及び丙は，当該土地の１の各筆明細に記載された面積と実測面積の間に差異があっても，異議を述べず，ま
A58: （１）契約の締結 | L58: た，農作業の委託に関する対価の増減を請求しない。ただし，次に掲げる場合はこの限りではない。
A59: １の各筆明細に記載された土地（以下「当該土地」という。）における農作業（以下「当該農作業」という。）の委 | L59: ア 経済的条件の変動が生じ，本計画に定める農作業の委託に関する対価が著しく不相当と認められるとき。
A60: 託に係る契約は，本計画の公告により締結されたものとみなす。 | L60: イ 災害その他の事由により，本計画により委託される農作業等の一部又は全部を遂行することが著しく困難となっ
A61: （２）契約締結の条件 | L61: たとき。
A62: ア 本計画により農地中間管理機構（以下「乙」という。）が乙に農作業の委託をする者（以下「甲」という。）と | L62: ウ やむを得ない事情により，農作業の内容に追加，変更がある場合には，甲と丙が同意のうえ，対価を変更できる。
A63: 締結したものとみなされる契約は，次のいずれかに該当するときは乙が県知事の承認を受けて解除する場合がある。 | L63: （７）損害の賠償
A64: （ア）農作業の委託が終了してもなお当該農用地の農作業の委託を行うことができる見込みがないと認められるとき。 | L64: 甲，乙及び丙のいずれの責にも帰すことができない事由により減収等が発生した場合における負担は甲が負う。ま
A65: （イ）災害その他の事由により農用地等としての利用を継続することが著しく困難となったとき。 | L65: た，乙は，丙が受託した農作業に起因して，甲が被ったいかなる損害も責任を負わないものとする。
A66: イ 本計画により乙が乙から農作業の委託を受ける者（以下「丙」という。）と締結したとみなされる契約は，丙が | L66: （８）農地中間管理機構関連農地整備事業の実施
A67: 次のいずれかに該当するときは乙が県知事の承認を受けて解除する場合がある。 | L67: 当該土地のうち，乙に対し15年以上の期間で農作業が委託されているものについては，土地改良法第87条の３第１
A68: （ア）当該農作業を適正に行っていないと認められるとき。 | L68: 項の土地改良事業が行われることがある。
A69: （イ）正当な理由がなく農地中間管理事業の推進に関する法律（平成25年法律第101号）第21条第１項の規定による | L69: （９）その他
A70: 報告をしないとき。 | L70: 本計画に定めのない事項（品種，使用する農業用資材，除草・防除の実施次期・回数などに関する事項等）は，乙
L71: を介さず甲と丙で適宜取り決めることとし，本計画に疑義が生じたときは，甲，乙及び丙が協議する。

Sheet 促進計画一覧表
C1: 農用地利用集積等促進計画一覧表（農作業受委託(基幹３作業)）
B2: =入力シート!F3 -> 鹿児島市
B3: No | C3: 対象農地 | H3: 委託する作業内容と期間 | M3: 甲が丙に支払う対価の支払い方法等 | S3: 農作業を委託する者（甲） | U3: 農作業を受託する者（丙）
C4: 大字 | D4: 字 | E4: 地番 | F4: 地目 | G4: 受委託 面積(㎡) | H4: 農作業受委託の形態 | I4: 農作業の内容 | J4: 始期 | K4: 終期 | L4: 契約期間 | M4: 主たる作物 | P4: その他作物 | S4: 氏名・名称 | T4: 住所 | U4: 氏名・名称 | V4: 住所
M5: 対価 | N5: 支払い方法 | O5: 支払期限 | P5: 対価 | Q5: 支払い方法 | R5: 支払期限
B6: 1 | C6: =IF(入力シート!M8="","",入力シート!M8) -> 名山町1 | D6: =IF(入力シート!N8="","",入力シート!N8) -> 名山堀1 | E6: =IF(入力シート!O8="","",入力シート!O8) -> 1001 | F6: =IF(入力シート!P8="","",入力シート!P8) -> 田 | G6: =IF(入力シート!Q8="","",入力シート!Q8) -> 1101 | H6: =IF(C8="","","基幹３作業") -> 基幹３作業 | I6: =IF(入力シート!$R8="","",IF(入力シート!$R8=5,"",IF(入力シート!$R8<=2,"1水稲 ①耕起・代掻②田植③収穫･脱穀",""))) -> 1水稲 ①耕起・代掻②田植③収穫･脱穀 | J6: =IF(入力シート!V8="","",入力シート!V8) -> 2023-10-01 | K6: =IF(入力シート!W8="","",入力シート!W8) -> 2033-09-30 | L6: =IF(入力シート!X8="","",入力シート!X8) -> 10年 | M6: =入力シート!Z8 -> 38535 | N6: =IF(入力シート!AA8="","",入力シート!AA8) -> 現金払 | O6: =IF(入力シート!AB8="","",入力シート!AB8) -> 10 | P6: =入力シート!AD8 -> 22020 | Q6: =IF(入力シート!AE8="","",入力シート!AE8) -> 口座払(振込) | R6: =IF(入力シート!AF8="","",入力シート!AF8) -> 11 | S6: =IF(入力シート!F8="","",入力シート!F8) -> 農地 太郎 | T6: =IF(入力シート!G8="","",入力シート!G8) -> 鹿児島市名山町１番１号 | U6: =IF(入力シート!I8="","",入力シート!I8) -> 耕地 大作 | V6: =IF(入力シート!J8="","",入力シート!J8) -> 鹿児島市鴨池新町10番１号
B7: 2 | C7: =IF(入力シート!M9="","",入力シート!M9) -> 名山町2 | D7: =IF(入力シート!N9="","",入力シート!N9) -> 名山堀2 | E7: =IF(入力シート!O9="","",入力シート!O9) -> 1002 | F7: =IF(入力シート!P9="","",入力シート!P9) -> 田 | G7: =IF(入力シート!Q9="","",入力シート!Q9) -> 1102 | M7: =入力シート!Z9 -> 38570 | P7: =入力シート!AD9 -> 22040
B8: 3 | C8: =IF(入力シート!M10="","",入力シート!M10) -> 名山町3 | D8: =IF(入力シート!N10="","",入力シート!N10) -> 新田1 | E8: =IF(入力シート!O10="","",入力シート!O10) -> 1003 | F8: =IF(入力シート!P10="","",入力シート!P10) -> 畑 | G8: =IF(入力シート!Q10="","",入力シート!Q10) -> 1103 | M8: =入力シート!Z10 -> 38605 | P8: =入力シート!AD10 -> 22060
B9: 4 | C9: =IF(入力シート!M11="","",入力シート!M11) -> 名山町4 | D9: =IF(入力シート!N11="","",入力シート!N11) -> 新田2 | E9: =IF(入力シート!O11="","",入力シート!O11) -> 1004 | F9: =IF(入力シート!P11="","",入力シート!P11) -> 畑 | G9: =IF(入力シート!Q11="","",入力シート!Q11) -> 1104 | I9: =IF(入力シート!$R8="","",IF(入力シート!$R8=5,"",IF(入力シート!$R8>=3,"2さとうきび➀耕起･整地②定植③株出管理④中耕･培土⑤収穫➅防除の内３作業",""))) ->  | M9: =入力シート!Z11 -> 38640 | P9: =入力シート!AD11 -> 22080
B10: 5 | C10: =IF(入力シート!M12="","",入力シート!M12) -> 名山町5 | D10: =IF(入力シート!N12="","",入力シート!N12) -> 新田3 | E10: =IF(入力シート!O12="","",入力シート!O12) -> 1005 | F10: =IF(入力シート!P12="","",入力シート!P12) -> 畑 | G10: =IF(入力シート!Q12="","",入力シート!Q12) -> 1105 | M10: =入力シート!Z12 -> 38675 | P10: =入力シート!AD12 -> 22100
B11: 6 | C11: =IF(入力シート!M13="","",入力シート!M13) -> 名山町6 | D11: =IF(入力シート!N13="","",入力シート!N13) -> 新田4 | E11: =IF(入力シート!O13="","",入力シート!O13) -> 1006 | F11: =IF(入力シート!P13="","",入力シート!P13) -> 畑 | G11: =IF(入力シート!Q13="","",入力シート!Q13) -> 1106 | M11: =入力シート!Z13 -> 38710 | P11: =入力シート!AD13 -> 22120
B12: 7 | C12: =IF(入力シート!M14="","",入力シート!M14) -> 名山町7 | D12: =IF(入力シート!N14="","",入力シート!N14) -> 新田5 | E12: =IF(入力シート!O14="","",入力シート!O14) -> 1007 | F12: =IF(入力シート!P14="","",入力シート!P14) -> 樹園地 | G12: =IF(入力シート!Q14="","",入力シート!Q14) -> 1107 | M12: =入力シート!Z14 -> 38745 | P12: =入力シート!AD14 -> 22140
B13: 8 | C13: =IF(入力シート!M15="","",入力シート!M15) -> 名山町8 | D13: =IF(入力シート!N15="","",入力シート!N15) -> 新田6 | E13: =IF(入力シート!O15="","",入力シート!O15) -> 1008 | F13: =IF(入力シート!P15="","",入力シート!P15) -> 田 | G13: =IF(入力シート!Q15="","",入力シート!Q15) -> 1108 | I13: =IF(入力シート!$R8>=4,入力シート!$S8,IF(入力シート!$R8=2,入力シート!$S8,"")) -> バレイショ | M13: =入力シート!Z15 -> 38780 | P13: =入力シート!AD15 -> 22160
B14: 9 | C14: =IF(入力シート!M16="","",入力シート!M16) -> 名山町9 | D14: =IF(入力シート!N16="","",入力シート!N16) -> 新田7 | E14: =IF(入力シート!O16="","",入力シート!O16) -> 1009 | F14: =IF(入力シート!P16="","",入力シート!P16) -> 畑 | G14: =IF(入力シート!Q16="","",入力シート!Q16) -> 1109 | I14: =IF(入力シート!$R8>=4,入力シート!$T8,IF(入力シート!$R8=2,入力シート!$T8,"")) -> 耕起・整地 播種 収穫 | M14: =入力シート!Z16 -> 38815 | P14: =入力シート!AD16 -> 22180
B15: 10 | C15: =IF(入力シート!M17="","",入力シート!M17) -> 名山町10 | D15: =IF(入力シート!N17="","",入力シート!N17) -> 新田8 | E15: =IF(入力シート!O17="","",入力シート!O17) -> 1010 | F15: =IF(入力シート!P17="","",入力シート!P17) -> 樹園地 | G15: =IF(入力シート!Q17="","",入力シート!Q17) -> 1110 | M15: =入力シート!Z17 -> 38850 | P15: =入力シート!AD17 -> 22200
B16: 小計 | E16: =IF(E6="","",10-COUNTBLANK(E6:E15)) -> 10 | F16: 筆 | G16: =IF(E6="","",SUM(G6:G15)) -> 11055 | M16: =IF(E6="","",SUM(M6:M15)) -> 386925 | P16: =IF(F6="","",SUM(P6:P15)) -> 221100
B17: 11 | C17: =IF(入力シート!M18="","",入力シート!M18) -> 東開町1 | D17: =IF(入力シート!N18="","",入力シート!N18) -> 山田1 | E17: =IF(入力シート!O18="","",入力シート!O18) -> 2001 | F17: =IF(入力シート!P18="","",入力シート!P18) -> 田 | G17: =IF(入力シート!Q18="","",入力シート!Q18) -> 1500 | H17: =IF(C19="","","基幹３作業") -> 基幹３作業 | I17: =IF(入力シート!$R18="","",IF(入力シート!$R18=5,"",IF(入力シート!$R18<=2,"1水稲 ①耕起・代掻②田植③収穫･脱穀",""))) ->  | J17: =IF(入力シート!V18="","",入力シート!V18) -> 2023-01-01 | K17: =IF(入力シート!W18="","",入力シート!W18) -> 2032-12-31 | L17: =IF(入力シート!X18="","",入力シート!X18) -> 10年 | M17: =入力シート!Z18 -> 26250 | N17: =IF(入力シート!AA18="","",入力シート!AA18) -> 口座払(振込) | O17: =IF(入力シート!AB18="","",入力シート!AB18) -> 7 | P17: =入力シート!AD18 -> 15000 | Q17: =IF(入力シート!AE18="","",入力シート!AE18) -> 現金払 | R17: =IF(入力シート!AF18="","",入力シート!AF18) -> 9 | S17: =IF(入力シート!F18="","",入力シート!F18) -> 農地 次郎 | T17: =IF(入力シート!G18="","",入力シート!G18) -> 鹿児島市名山町２番２号 | U17: =IF(入力シート!I18="","",入力シート!I18) -> 耕地 小作 | V17: =IF(入力シート!J18="","",入力シート!J18) -> 鹿児島市鴨池新町22番2号
B18: 12 | C18: =IF(入力シート!M19="","",入力シート!M19) -> 東開町2 | D18: =IF(入力シート!N19="","",入力シート!N19) -> 山田2 | E18: =IF(入力シート!O19="","",入力シート!O19) -> 2002 | F18: =IF(入力シート!P19="","",入力シート!P19) -> 田 | G18: =IF(入力シート!Q19="","",入力シート!Q19) -> 1600 | M18: =入力シート!Z19 -> 28000 | P18: =入力シート!AD19 -> 16000
B19: 13 | C19: =IF(入力シート!M20="","",入力シート!M20) -> 東開町3 | D19: =IF(入力シート!N20="","",入力シート!N20) -> 山田3 | E19: =IF(入力シート!O20="","",入力シート!O20) -> 2003 | F19: =IF(入力シート!P20="","",入力シート!P20) -> 畑 | G19: =IF(入力シート!Q20="","",入力シート!Q20) -> 1700 | M19: =入力シート!Z20 -> 29750 | P19: =入力シート!AD20 -> 17000
B20: 14 | C20: =IF(入力シート!M21="","",入力シート!M21) -> 東開町4 | D20: =IF(入力シート!N21="","",入力シート!N21) -> 山田4 | E20: =IF(入力シート!O21="","",入力シート!O21) -> 2004 | F20: =IF(入力シート!P21="","",入力シート!P21) -> 畑 | G20: =IF(入力シート!Q21="","",入力シート!Q21) -> 1800 | I20: =IF(入力シート!$R18="","",IF(入力シート!$R18=5,"",IF(入力シート!$R18>=3,"2さとうきび➀耕起･整地②定植③株出管理④中耕･培土⑤収穫➅防除の内３作業",""))) -> 2さとうきび➀耕起･整地②定植③株出管理④中耕･培土⑤収穫➅防除の内３作業 | M20: =入力シート!Z21 -> 31500 | P20: =入力シート!AD21 -> 18000
B21: 15 | C21: =IF(入力シート!M22="","",入力シート!M22) -> 東開町5 | D21: =IF(入力シート!N22="","",入力シート!N22) -> 山田5 | E21: =IF(入力シート!O22="","",入力シート!O22) -> 2005 | F21: =IF(入力シート!P22="","",入力シート!P22) -> 樹園地 | G21: =IF(入力シート!Q22="","",入力シート!Q22) -> 1900 | M21: =入力シート!Z22 -> 33250 | P21: =入力シート!AD22 -> 19000
B22: 16 | C22: =IF(入力シート!M23="","",入力シート!M23) -> 東開町6 | D22: =IF(入力シート!N23="","",入力シート!N23) -> 山田6 | E22: =IF(入力シート!O23="","",入力シート!O23) -> 2006 | F22: =IF(入力シート!P23="","",入力シート!P23) -> 樹園地 | G22: =IF(入力シート!Q23="","",入力シート!Q23) -> 2000 | M22: =入力シート!Z23 -> 35000 | P22: =入力シート!AD23 -> 20000
B23: 17 | C23: =IF(入力シート!M24="","",入力シート!M24) -> 東開町7 | D23: =IF(入力シート!N24="","",入力シート!N24) -> 山田7 | E23: =IF(入力シート!O24="","",入力シート!O24) -> 2007 | F23: =IF(入力シート!P24="","",入力シート!P24) -> 田 | G23: =IF(入力シート!Q24="","",入力シート!Q24) -> 2100 | M23: =入力シート!Z24 -> 36750 | P23: =入力シート!AD24 -> 21000
B24: 18 | C24: =IF(入力シート!M25="","",入力シート!M25) -> 東開町8 | D24: =IF(入力シート!N25="","",入力シート!N25) -> 山田8 | E24: =IF(入力シート!O25="","",入力シート!O25) -> 2008 | F24: =IF(入力シート!P25="","",入力シート!P25) -> 畑 | G24: =IF(入力シート!Q25="","",入力シート!Q25) -> 2200 | I24: =IF(入力シート!$R18>=4,入力シート!$S18,IF(入力シート!$R18=2,入力シート!$S18,"")) -> バレイショ | M24: =入力シート!Z25 -> 38500 | P24: =入力シート!AD25 -> 22000
B25: 19 | C25: =IF(入力シート!M26="","",入力シート!M26) -> 東開町9 | D25: =IF(入力シート!N26="","",入力シート!N26) -> 山田9 | E25: =IF(入力シート!O26="","",入力シート!O26) -> 2009 | F25: =IF(入力シート!P26="","",入力シート!P26) -> 樹園地 | G25: =IF(入力シート!Q26="","",入力シート!Q26) -> 2300 | I25: =IF(入力シート!$R18>=4,入力シート!$T18,IF(入力シート!$R18=2,入力シート!$T18,"")) -> 耕起・整地 播種 収穫 | M25: =入力シート!Z26 -> 40250 | P25: =入力シート!AD26 -> 23000
B26: 20 | C26: =IF(入力シート!M27="","",入力シート!M27) -> 東開町10 | D26: =IF(入力シート!N27="","",入力シート!N27) -> 山田10 | E26: =IF(入力シート!O27="","",入力シート!O27) -> 2010 | F26: =IF(入力シート!P27="","",入力シート!P27) -> 田 | G26: =IF(入力シート!Q27="","",入力シート!Q27) -> 2400 | M26: =入力シート!Z27 -> 42000 | P26: =入力シート!AD27 -> 24000
B27: 小計 | E27: =IF(E17="","",10-COUNTBLANK(E17:E26)) -> 10 | F27: 筆 | G27: =IF(E17="","",SUM(G17:G26)) -> 19500 | M27: =IF(E17="","",SUM(M17:M26)) -> 341250 | P27: =IF(F17="","",SUM(P17:P26)) -> 195000
B28: 21 | C28: =IF(入力シート!M28="","",入力シート!M28) -> 名山町1 | D28: =IF(入力シート!N28="","",入力シート!N28) -> 名山堀1 | E28: =IF(入力シート!O28="","",入力シート!O28) -> 1001 | F28: =IF(入力シート!P28="","",入力シート!P28) -> 田 | G28: =IF(入力シート!Q28="","",入力シート!Q28) -> 1101 | H28: =IF(C30="","","基幹３作業") -> 基幹３作業 | I28: =IF(入力シート!$R28="","",IF(入力シート!$R28=5,"",IF(入力シート!$R28<=2,"1水稲 ①耕起・代掻②田植③収穫･脱穀",""))) -> 1水稲 ①耕起・代掻②田植③収穫･脱穀 | J28: =IF(入力シート!V28="","",入力シート!V28) -> 2023-10-01 | K28: =IF(入力シート!W28="","",入力シート!W28) -> 2033-09-30 | L28: =IF(入力シート!X28="","",入力シート!X28) -> 10年 | M28: =入力シート!Z28 -> 19267.5 | N28: =IF(入力シート!AA28="","",入力シート!AA28) -> 口座払(振込) | O28: =IF(入力シート!AB28="","",入力シート!AB28) -> 7 | P28: =入力シート!AD28 -> 22020 | Q28: =IF(入力シート!AE28="","",入力シート!AE28) -> 口座払(振込) | R28: =IF(入力シート!AF28="","",入力シート!AF28) -> 11 | S28: =IF(入力シート!F28="","",入力シート!F28) -> 農地 太郎 | T28: =IF(入力シート!G28="","",入力シート!G28) -> 鹿児島市名山町１番１号 | U28: =IF(入力シート!I28="","",入力シート!I28) -> 耕地 大作 | V28: =IF(入力シート!J28="","",入力シート!J28) -> 鹿児島市鴨池新町10番１号
B29: 22 | C29: =IF(入力シート!M29="","",入力シート!M29) -> 名山町2 | D29: =IF(入力シート!N29="","",入力シート!N29) -> 名山堀2 | E29: =IF(入力シート!O29="","",入力シート!O29) -> 1002 | F29: =IF(入力シート!P29="","",入力シート!P29) -> 田 | G29: =IF(入力シート!Q29="","",入力シート!Q29) -> 1102 | M29: =入力シート!Z29 -> 19285 | P29: =入力シート!AD29 -> 22040
B30: 23 | C30: =IF(入力シート!M30="","",入力シート!M30) -> 名山町3 | D30: =IF(入力シート!N30="","",入力シート!N30) -> 新田1 | E30: =IF(入力シート!O30="","",入力シート!O30) -> 1003 | F30: =IF(入力シート!P30="","",入力シート!P30) -> 畑 | G30: =IF(入力シート!Q30="","",入力シート!Q30) -> 1103 | M30: =入力シート!Z30 -> 19302.5 | P30: =入力シート!AD30 -> 22060
B31: 24 | C31: =IF(入力シート!M31="","",入力シート!M31) -> 名山町4 | D31: =IF(入力シート!N31="","",入力シート!N31) -> 新田2 | E31: =IF(入力シート!O31="","",入力シート!O31) -> 1004 | F31: =IF(入力シート!P31="","",入力シート!P31) -> 畑 | G31: =IF(入力シート!Q31="","",入力シート!Q31) -> 1104 | I31: =IF(入力シート!$R28="","",IF(入力シート!$R28=5,"",IF(入力シート!$R28>=3,"2さとうきび➀耕起･整地②定植③株出管理④中耕･培土⑤収穫➅防除の内３作業",""))) ->  | M31: =入力シート!Z31 -> 19320 | P31: =入力シート!AD31 -> 22080
B32: 25 | C32: =IF(入力シート!M32="","",入力シート!M32) -> 名山町5 | D32: =IF(入力シート!N32="","",入力シート!N32) -> 新田3 | E32: =IF(入力シート!O32="","",入力シート!O32) -> 1005 | F32: =IF(入力シート!P32="","",入力シート!P32) -> 畑 | G32: =IF(入力シート!Q32="","",入力シート!Q32) -> 1105 | M32: =入力シート!Z32 -> 19337.5 | P32: =入力シート!AD32 -> 22100
B33: 26 | C33: =IF(入力シート!M33="","",入力シート!M33) -> 名山町6 | D33: =IF(入力シート!N33="","",入力シート!N33) -> 新田4 | E33: =IF(入力シート!O33="","",入力シート!O33) -> 1006 | F33: =IF(入力シート!P33="","",入力シート!P33) -> 畑 | G33: =IF(入力シート!Q33="","",入力シート!Q33) -> 2000 | M33: =入力シート!Z33 -> 35000 | P33: =入力シート!AD33 -> 40000
B34: 27 | C34: =IF(入力シート!M34="","",入力シート!M34) -> 名山町7 | D34: =IF(入力シート!N34="","",入力シート!N34) -> 新田5 | E34: =IF(入力シート!O34="","",入力シート!O34) -> 1007 | F34: =IF(入力シート!P34="","",入力シート!P34) -> 樹園地 | G34: =IF(入力シート!Q34="","",入力シート!Q34) -> 2000 | M34: =入力シート!Z34 -> 35000 | P34: =入力シート!AD34 -> 40000
B35: 28 | C35: =IF(入力シート!M35="","",入力シート!M35) ->  | D35: =IF(入力シート!N35="","",入力シート!N35) ->  | E35: =IF(入力シート!O35="","",入力シート!O35) ->  | F35: =IF(入力シート!P35="","",入力シート!P35) ->  | G35: =IF(入力シート!Q35="","",入力シート!Q35) ->  | I35: =IF(入力シート!$R28>=4,入力シート!$S28,IF(入力シート!$R28=2,入力シート!$S28,"")) ->  | M35: =入力シート!Z35 -> 0 | P35: =入力シート!AD35 -> 0
B36: 29 | C36: =IF(入力シート!M36="","",入力シート!M36) ->  | D36: =IF(入力シート!N36="","",入力シート!N36) ->  | E36: =IF(入力シート!O36="","",入力シート!O36) ->  | F36: =IF(入力シート!P36="","",入力シート!P36) ->  | G36: =IF(入力シート!Q36="","",入力シート!Q36) ->  | I36: =IF(入力シート!$R28>=4,入力シート!$T28,IF(入力シート!$R28=2,入力シート!$T28,"")) ->  | M36: =入力シート!Z36 -> 0 | P36: =入力シート!AD36 -> 0
B37: 30 | C37: =IF(入力シート!M37="","",入力シート!M37) ->  | D37: =IF(入力シート!N37="","",入力シート!N37) ->  | E37: =IF(入力シート!O37="","",入力シート!O37) ->  | F37: =IF(入力シート!P37="","",入力シート!P37) ->  | G37: =IF(入力シート!Q37="","",入力シート!Q37) ->  | M37: =入力シート!Z37 -> 0 | P37: =入力シート!AD37 -> 0
B38: 小計 | E38: =IF(E28="","",10-COUNTBLANK(E28:E37)) -> 7 | F38: 筆 | G38: =IF(E28="","",SUM(G28:G37)) -> 9515 | M38: =IF(E28="","",SUM(M28:M37)) -> 166512.5 | P38: =IF(F28="","",SUM(P28:P37)) -> 190300
B39: 31 | C39: =IF(入力シート!M38="","",入力シート!M38) ->  | D39: =IF(入力シート!N38="","",入力シート!N38) ->  | E39: =IF(入力シート!O38="","",入力シート!O38) ->  | F39: =IF(入力シート!P38="","",入力シート!P38) ->  | G39: =IF(入力シート!Q38="","",入力シート!Q38) ->  | H39: =IF(C41="","","基幹３作業") ->  | I39: =IF(入力シート!$R38="","",IF(入力シート!$R38=5,"",IF(入力シート!$R38<=2,"1水稲 ①耕起・代掻②田植③収穫･脱穀",""))) ->  | J39: =IF(入力シート!V38="","",入力シート!V38) ->  | K39: =IF(入力シート!W38="","",入力シート!W38) ->  | L39: =IF(入力シート!X38="","",入力シート!X38) ->  | M39: =入力シート!Z38 ->  | N39: =IF(入力シート!AA38="","",入力シート!AA38) ->  | O39: =IF(入力シート!AB38="","",入力シート!AB38) ->  | P39: =入力シート!AD38 ->  | Q39: =IF(入力シート!AE38="","",入力シート!AE38) ->  | R39: =IF(入力シート!AF38="","",入力シート!AF38) ->  | S39: =IF(入力シート!F38="","",入力シート!F38) ->  | T39: =IF(入力シート!G38="","",入力シート!G38) ->  | U39: =IF(入力シート!I38="","",入力シート!I38) ->  | V39: =IF(入力シート!J38="","",入力シート!J38) -> 
B40: 32 | C40: =IF(入力シート!M39="","",入力シート!M39) ->  | D40: =IF(入力シート!N39="","",入力シート!N39) ->  | E40: =IF(入力シート!O39="","",入力シート!O39) ->  | F40: =IF(入力シート!P39="","",入力シート!P39) ->  | G40: =IF(入力シート!Q39="","",入力シート!Q39) ->  | M40: =入力シート!Z39 ->  | P40: =入力シート!AD39 -> 
B41: 33 | C41: =IF(入力シート!M40="","",入力シート!M40) ->  | D41: =IF(入力シート!N40="","",入力シート!N40) ->  | E41: =IF(入力シート!O40="","",入力シート!O40) ->  | F41: =IF(入力シート!P40="","",入力シート!P40) ->  | G41: =IF(入力シート!Q40="","",入力シート!Q40) ->  | M41: =入力シート!Z40 ->  | P41: =入力シート!AD40 -> 
B42: 34 | C42: =IF(入力シート!M41="","",入力シート!M41) ->  | D42: =IF(入力シート!N41="","",入力シート!N41) ->  | E42: =IF(入力シート!O41="","",入力シート!O41) ->  | F42: =IF(入力シート!P41="","",入力シート!P41) ->  | G42: =IF(入力シート!Q41="","",入力シート!Q41) ->  | I42: =IF(入力シート!$R38="","",IF(入力シート!$R38=5,"",IF(入力シート!$R38>=3,"2さとうきび➀耕起･整地②定植③株出管理④中耕･培土⑤収穫➅防除の内３作業",""))) ->  | M42: =入力シート!Z41 ->  | P42: =入力シート!AD41 -> 
B43: 35 | C43: =IF(入力シート!M42="","",入力シート!M42) ->  | D43: =IF(入力シート!N42="","",入力シート!N42) ->  | E43: =IF(入力シート!O42="","",入力シート!O42) ->  | F43: =IF(入力シート!P42="","",入力シート!P42) ->  | G43: =IF(入力シート!Q42="","",入力シート!Q42) ->  | M43: =入力シート!Z42 ->  | P43: =入力シート!AD42 -> 
B44: 36 | C44: =IF(入力シート!M43="","",入力シート!M43) ->  | D44: =IF(入力シート!N43="","",入力シート!N43) ->  | E44: =IF(入力シート!O43="","",入力シート!O43) ->  | F44: =IF(入力シート!P43="","",入力シート!P43) ->  | G44: =IF(入力シート!Q43="","",入力シート!Q43) ->  | M44: =入力シート!Z43 ->  | P44: =入力シート!AD43 -> 
B45: 37 | C45: =IF(入力シート!M44="","",入力シート!M44) ->  | D45: =IF(入力シート!N44="","",入力シート!N44) ->  | E45: =IF(入力シート!O44="","",入力シート!O44) ->  | F45: =IF(入力シート!P44="","",入力シート!P44) ->  | G45: =IF(入力シート!Q44="","",入力シート!Q44) ->  | M45: =入力シート!Z44 ->  | P45: =入力シート!AD44 -> 
B46: 38 | C46: =IF(入力シート!M45="","",入力シート!M45) ->  | D46: =IF(入力シート!N45="","",入力シート!N45) ->  | E46: =IF(入力シート!O45="","",入力シート!O45) ->  | F46: =IF(入力シート!P45="","",入力シート!P45) ->  | G46: =IF(入力シート!Q45="","",入力シート!Q45) ->  | I46: =IF(入力シート!$R38>=4,入力シート!$S38,IF(入力シート!$R38=2,入力シート!$S38,"")) ->  | M46: =入力シート!Z45 ->  | P46: =入力シート!AD45 -> 
B47: 39 | C47: =IF(入力シート!M46="","",入力シート!M46) ->  | D47: =IF(入力シート!N46="","",入力シート!N46) ->  | E47: =IF(入力シート!O46="","",入力シート!O46) ->  | F47: =IF(入力シート!P46="","",入力シート!P46) ->  | G47: =IF(入力シート!Q46="","",入力シート!Q46) ->  | I47: =IF(入力シート!$R38>=4,入力シート!$T38,IF(入力シート!$R38=2,入力シート!$T38,"")) ->  | M47: =入力シート!Z46 ->  | P47: =入力シート!AD46 -> 
B48: 40 | C48: =IF(入力シート!M47="","",入力シート!M47) ->  | D48: =IF(入力シート!N47="","",入力シート!N47) ->  | E48: =IF(入力シート!O47="","",入力シート!O47) ->  | F48: =IF(入力シート!P47="","",入力シート!P47) ->  | G48: =IF(入力シート!Q47="","",入力シート!Q47) ->  | M48: =入力シート!Z47 ->  | P48: =入力シート!AD47 -> 
B49: 小計 | E49: =IF(E39="","",10-COUNTBLANK(E39:E48)) ->  | F49: 筆 | G49: =IF(E39="","",SUM(G39:G48)) ->  | M49: =IF(E39="","",SUM(M39:M48)) ->  | P49: =IF(F39="","",SUM(P39:P48)) -> 
B50: 41 | C50: =IF(入力シート!M48="","",入力シート!M48) ->  | D50: =IF(入力シート!N48="","",入力シート!N48) ->  | E50: =IF(入力シート!O48="","",入力シート!O48) ->  | F50: =IF(入力シート!P48="","",入力シート!P48) ->  | G50: =IF(入力シート!Q48="","",入力シート!Q48) ->  | H50: =IF(C52="","","基幹３作業") ->  | I50: =IF(入力シート!$R48="","",IF(入力シート!$R48=5,"",IF(入力シート!$R48<=2,"1水稲 ①耕起・代掻②田植③収穫･脱穀",""))) ->  | J50: =IF(入力シート!V48="","",入力シート!V48) ->  | K50: =IF(入力シート!W48="","",入力シート!W48) ->  | L50: =IF(入力シート!X48="","",入力シート!X48) ->  | M50: =入力シート!Z48 ->  | N50: =IF(入力シート!AA48="","",入力シート!AA48) ->  | O50: =IF(入力シート!AB48="","",入力シート!AB48) ->  | P50: =入力シート!AD48 ->  | Q50: =IF(入力シート!AE48="","",入力シート!AE48) ->  | R50: =IF(入力シート!AF48="","",入力シート!AF48) ->  | S50: =IF(入力シート!F48="","",入力シート!F48) ->  | T50: =IF(入力シート!G48="","",入力シート!G48) ->  | U50: =IF(入力シート!I48="","",入力シート!I48) ->  | V50: =IF(入力シート!J48="","",入力シート!J48) -> 
B51: 42 | C51: =IF(入力シート!M49="","",入力シート!M49) ->  | D51: =IF(入力シート!N49="","",入力シート!N49) ->  | E51: =IF(入力シート!O49="","",入力シート!O49) ->  | F51: =IF(入力シート!P49="","",入力シート!P49) ->  | G51: =IF(入力シート!Q49="","",入力シート!Q49) ->  | M51: =入力シート!Z49 ->  | P51: =入力シート!AD49 -> 
B52: 43 | C52: =IF(入力シート!M50="","",入力シート!M50) ->  | D52: =IF(入力シート!N50="","",入力シート!N50) ->  | E52: =IF(入力シート!O50="","",入力シート!O50) ->  | F52: =IF(入力シート!P50="","",入力シート!P50) ->  | G52: =IF(入力シート!Q50="","",入力シート!Q50) ->  | M52: =入力シート!Z50 ->  | P52: =入力シート!AD50 -> 
B53: 44 | C53: =IF(入力シート!M51="","",入力シート!M51) ->  | D53: =IF(入力シート!N51="","",入力シート!N51) ->  | E53: =IF(入力シート!O51="","",入力シート!O51) ->  | F53: =IF(入力シート!P51="","",入力シート!P51) ->  | G53: =IF(入力シート!Q51="","",入力シート!Q51) ->  | I53: =IF(入力シート!$R48="","",IF(入力シート!$R48=5,"",IF(入力シート!$R48>=3,"2さとうきび➀耕起･整地②定植③株出管理④中耕･培土⑤収穫➅防除の内３作業",""))) ->  | M53: =入力シート!Z51 ->  | P53: =入力シート!AD51 -> 
B54: 45 | C54: =IF(入力シート!M52="","",入力シート!M52) ->  | D54: =IF(入力シート!N52="","",入力シート!N52) ->  | E54: =IF(入力シート!O52="","",入力シート!O52) ->  | F54: =IF(入力シート!P52="","",入力シート!P52) ->  | G54: =IF(入力シート!Q52="","",入力シート!Q52) ->  | M54: =入力シート!Z52 ->  | P54: =入力シート!AD52 -> 
B55: 46 | C55: =IF(入力シート!M53="","",入力シート!M53) ->  | D55: =IF(入力シート!N53="","",入力シート!N53) ->  | E55: =IF(入力シート!O53="","",入力シート!O53) ->  | F55: =IF(入力シート!P53="","",入力シート!P53) ->  | G55: =IF(入力シート!Q53="","",入力シート!Q53) ->  | M55: =入力シート!Z53 ->  | P55: =入力シート!AD53 -> 
B56: 47 | C56: =IF(入力シート!M54="","",入力シート!M54) ->  | D56: =IF(入力シート!N54="","",入力シート!N54) ->  | E56: =IF(入力シート!O54="","",入力シート!O54) ->  | F56: =IF(入力シート!P54="","",入力シート!P54) ->  | G56: =IF(入力シート!Q54="","",入力シート!Q54) ->  | M56: =入力シート!Z54 ->  | P56: =入力シート!AD54 -> 
B57: 48 | C57: =IF(入力シート!M55="","",入力シート!M55) ->  | D57: =IF(入力シート!N55="","",入力シート!N55) ->  | E57: =IF(入力シート!O55="","",入力シート!O55) ->  | F57: =IF(入力シート!P55="","",入力シート!P55) ->  | G57: =IF(入力シート!Q55="","",入力シート!Q55) ->  | I57: =IF(入力シート!$R48>=4,入力シート!$S48,IF(入力シート!$R48=2,入力シート!$S48,"")) -> 0 | M57: =入力シート!Z55 ->  | P57: =入力シート!AD55 -> 
B58: 49 | C58: =IF(入力シート!M56="","",入力シート!M56) ->  | D58: =IF(入力シート!N56="","",入力シート!N56) ->  | E58: =IF(入力シート!O56="","",入力シート!O56) ->  | F58: =IF(入力シート!P56="","",入力シート!P56) ->  | G58: =IF(入力シート!Q56="","",入力シート!Q56) ->  | I58: =IF(入力シート!$R48>=4,入力シート!$T48,IF(入力シート!$R48=2,入力シート!$T48,"")) -> 0 | M58: =入力シート!Z56 ->  | P58: =入力シート!AD56 -> 
B59: 50 | C59: =IF(入力シート!M57="","",入力シート!M57) ->  | D59: =IF(入力シート!N57="","",入力シート!N57) ->  | E59: =IF(入力シート!O57="","",入力シート!O57) ->  | F59: =IF(入力シート!P57="","",入力シート!P57) ->  | G59: =IF(入力シート!Q57="","",入力シート!Q57) ->  | M59: =入力シート!Z57 ->  | P59: =入力シート!AD57 -> 
B60: 小計 | E60: =IF(E50="","",10-COUNTBLANK(E50:E59)) ->  | F60: 筆 | G60: =IF(E50="","",SUM(G50:G59)) ->  | M60: =IF(E50="","",SUM(M50:M59)) ->  | P60: =IF(F50="","",SUM(P50:P59)) -> 
B61: 51 | C61: =IF(入力シート!M58="","",入力シート!M58) ->  | D61: =IF(入力シート!N58="","",入力シート!N58) ->  | E61: =IF(入力シート!O58="","",入力シート!O58) ->  | F61: =IF(入力シート!P58="","",入力シート!P58) ->  | G61: =IF(入力シート!Q58="","",入力シート!Q58) ->  | H61: =IF(C63="","","基幹３作業") ->  | I61: =IF(入力シート!$R58="","",IF(入力シート!$R58=5,"",IF(入力シート!$R58<=2,"1水稲 ①耕起・代掻②田植③収穫･脱穀",""))) ->  | J61: =IF(入力シート!V58="","",入力シート!V58) ->  | K61: =IF(入力シート!W58="","",入力シート!W58) ->  | L61: =IF(入力シート!X58="","",入力シート!X58) ->  | M61: =入力シート!Z58 ->  | N61: =IF(入力シート!AA58="","",入力シート!AA58) ->  | O61: =IF(入力シート!AB58="","",入力シート!AB58) ->  | P61: =入力シート!AD58 ->  | Q61: =IF(入力シート!AE58="","",入力シート!AE58) ->  | R61: =IF(入力シート!AF58="","",入力シート!AF58) ->  | S61: =IF(入力シート!F58="","",入力シート!F58) ->  | T61: =IF(入力シート!G58="","",入力シート!G58) ->  | U61: =IF(入力シート!I58="","",入力シート!I58) ->  | V61: =IF(入力シート!J58="","",入力シート!J58) -> 
B62: 52 | C62: =IF(入力シート!M59="","",入力シート!M59) ->  | D62: =IF(入力シート!N59="","",入力シート!N59) ->  | E62: =IF(入力シート!O59="","",入力シート!O59) ->  | F62: =IF(入力シート!P59="","",入力シート!P59) ->  | G62: =IF(入力シート!Q59="","",入力シート!Q59) ->  | M62: =入力シート!Z59 ->  | P62: =入力シート!AD59 -> 
B63: 53 | C63: =IF(入力シート!M60="","",入力シート!M60) ->  | D63: =IF(入力シート!N60="","",入力シート!N60) ->  | E63: =IF(入力シート!O60="","",入力シート!O60) ->  | F63: =IF(入力シート!P60="","",入力シート!P60) ->  | G63: =IF(入力シート!Q60="","",入力シート!Q60) ->  | M63: =入力シート!Z60 ->  | P63: =入力シート!AD60 -> 
B64: 54 | C64: =IF(入力シート!M61="","",入力シート!M61) ->  | D64: =IF(入力シート!N61="","",入力シート!N61) ->  | E64: =IF(入力シート!O61="","",入力シート!O61) ->  | F64: =IF(入力シート!P61="","",入力シート!P61) ->  | G64: =IF(入力シート!Q61="","",入力シート!Q61) ->  | I64: =IF(入力シート!$R58="","",IF(入力シート!$R58=5,"",IF(入力シート!$R58>=3,"2さとうきび➀耕起･整地②定植③株出管理④中耕･培土⑤収穫➅防除の内３作業",""))) ->  | M64: =入力シート!Z61 ->  | P64: =入力シート!AD61 -> 
B65: 55 | C65: =IF(入力シート!M62="","",入力シート!M62) ->  | D65: =IF(入力シート!N62="","",入力シート!N62) ->  | E65: =IF(入力シート!O62="","",入力シート!O62) ->  | F65: =IF(入力シート!P62="","",入力シート!P62) ->  | G65: =IF(入力シート!Q62="","",入力シート!Q62) ->  | M65: =入力シート!Z62 ->  | P65: =入力シート!AD62 -> 
B66: 56 | C66: =IF(入力シート!M63="","",入力シート!M63) ->  | D66: =IF(入力シート!N63="","",入力シート!N63) ->  | E66: =IF(入力シート!O63="","",入力シート!O63) ->  | F66: =IF(入力シート!P63="","",入力シート!P63) ->  | G66: =IF(入力シート!Q63="","",入力シート!Q63) ->  | M66: =入力シート!Z63 ->  | P66: =入力シート!AD63 -> 
B67: 57 | C67: =IF(入力シート!M64="","",入力シート!M64) ->  | D67: =IF(入力シート!N64="","",入力シート!N64) ->  | E67: =IF(入力シート!O64="","",入力シート!O64) ->  | F67: =IF(入力シート!P64="","",入力シート!P64) ->  | G67: =IF(入力シート!Q64="","",入力シート!Q64) ->  | M67: =入力シート!Z64 ->  | P67: =入力シート!AD64 -> 
B68: 58 | C68: =IF(入力シート!M65="","",入力シート!M65) ->  | D68: =IF(入力シート!N65="","",入力シート!N65) ->  | E68: =IF(入力シート!O65="","",入力シート!O65) ->  | F68: =IF(入力シート!P65="","",入力シート!P65) ->  | G68: =IF(入力シート!Q65="","",入力シート!Q65) ->  | I68: =IF(入力シート!$R58>=4,入力シート!$S58,IF(入力シート!$R58=2,入力シート!$S58,"")) ->  | M68: =入力シート!Z65 ->  | P68: =入力シート!AD65 -> 
B69: 59 | C69: =IF(入力シート!M66="","",入力シート!M66) ->  | D69: =IF(入力シート!N66="","",入力シート!N66) ->  | E69: =IF(入力シート!O66="","",入力シート!O66) ->  | F69: =IF(入力シート!P66="","",入力シート!P66) ->  | G69: =IF(入力シート!Q66="","",入力シート!Q66) ->  | I69: =IF(入力シート!$R58>=4,入力シート!$T58,IF(入力シート!$R58=2,入力シート!$T58,"")) ->  | M69: =入力シート!Z66 ->  | P69: =入力シート!AD66 -> 
B70: 60 | C70: =IF(入力シート!M67="","",入力シート!M67) ->  | D70: =IF(入力シート!N67="","",入力シート!N67) ->  | E70: =IF(入力シート!O67="","",入力シート!O67) ->  | F70: =IF(入力シート!P67="","",入力シート!P67) ->  | G70: =IF(入力シート!Q67="","",入力シート!Q67) ->  | M70: =入力シート!Z67 ->  | P70: =入力シート!AD67 -> 
B71: 小計 | E71: =IF(E61="","",10-COUNTBLANK(E61:E70)) ->  | F71: 筆 | G71: =IF(E61="","",SUM(G61:G70)) ->  | M71: =IF(E61="","",SUM(M61:M70)) ->  | P71: =IF(F61="","",SUM(P61:P70)) -> 
B72: 61 | C72: =IF(入力シート!M68="","",入力シート!M68) ->  | D72: =IF(入力シート!N68="","",入力シート!N68) ->  | E72: =IF(入力シート!O68="","",入力シート!O68) ->  | F72: =IF(入力シート!P68="","",入力シート!P68) ->  | G72: =IF(入力シート!Q68="","",入力シート!Q68) ->  | H72: =IF(C74="","","基幹３作業") ->  | I72: =IF(入力シート!$R68="","",IF(入力シート!$R68=5,"",IF(入力シート!$R68<=2,"1水稲 ①耕起・代掻②田植③収穫･脱穀",""))) ->  | J72: =IF(入力シート!V68="","",入力シート!V68) ->  | K72: =IF(入力シート!W68="","",入力シート!W68) ->  | L72: =IF(入力シート!X68="","",入力シート!X68) ->  | M72: =入力シート!Z68 ->  | N72: =IF(入力シート!AA68="","",入力シート!AA68) ->  | O72: =IF(入力シート!AB68="","",入力シート!AB68) ->  | P72: =入力シート!AD68 ->  | Q72: =IF(入力シート!AE68="","",入力シート!AE68) ->  | R72: =IF(入力シート!AF68="","",入力シート!AF68) ->  | S72: =IF(入力シート!F68="","",入力シート!F68) ->  | T72: =IF(入力シート!G68="","",入力シート!G68) ->  | U72: =IF(入力シート!I68="","",入力シート!I68) ->  | V72: =IF(入力シート!J68="","",入力シート!J68) -> 
B73: 62 | C73: =IF(入力シート!M69="","",入力シート!M69) ->  | D73: =IF(入力シート!N69="","",入力シート!N69) ->  | E73: =IF(入力シート!O69="","",入力シート!O69) ->  | F73: =IF(入力シート!P69="","",入力シート!P69) ->  | G73: =IF(入力シート!Q69="","",入力シート!Q69) ->  | M73: =入力シート!Z69 ->  | P73: =入力シート!AD69 -> 
B74: 63 | C74: =IF(入力シート!M70="","",入力シート!M70) ->  | D74: =IF(入力シート!N70="","",入力シート!N70) ->  | E74: =IF(入力シート!O70="","",入力シート!O70) ->  | F74: =IF(入力シート!P70="","",入力シート!P70) ->  | G74: =IF(入力シート!Q70="","",入力シート!Q70) ->  | M74: =入力シート!Z70 ->  | P74: =入力シート!AD70 -> 
B75: 64 | C75: =IF(入力シート!M71="","",入力シート!M71) ->  | D75: =IF(入力シート!N71="","",入力シート!N71) ->  | E75: =IF(入力シート!O71="","",入力シート!O71) ->  | F75: =IF(入力シート!P71="","",入力シート!P71) ->  | G75: =IF(入力シート!Q71="","",入力シート!Q71) ->  | I75: =IF(入力シート!$R68="","",IF(入力シート!$R68=5,"",IF(入力シート!$R68>=3,"2さとうきび➀耕起･整地②定植③株出管理④中耕･培土⑤収穫➅防除の内３作業",""))) ->  | M75: =入力シート!Z71 ->  | P75: =入力シート!AD71 -> 
B76: 65 | C76: =IF(入力シート!M72="","",入力シート!M72) ->  | D76: =IF(入力シート!N72="","",入力シート!N72) ->  | E76: =IF(入力シート!O72="","",入力シート!O72) ->  | F76: =IF(入力シート!P72="","",入力シート!P72) ->  | G76: =IF(入力シート!Q72="","",入力シート!Q72) ->  | M76: =入力シート!Z72 ->  | P76: =入力シート!AD72 -> 
B77: 66 | C77: =IF(入力シート!M73="","",入力シート!M73) ->  | D77: =IF(入力シート!N73="","",入力シート!N73) ->  | E77: =IF(入力シート!O73="","",入力シート!O73) ->  | F77: =IF(入力シート!P73="","",入力シート!P73) ->  | G77: =IF(入力シート!Q73="","",入力シート!Q73) ->  | M77: =入力シート!Z73 ->  | P77: =入力シート!AD73 -> 
B78: 67 | C78: =IF(入力シート!M74="","",入力シート!M74) ->  | D78: =IF(入力シート!N74="","",入力シート!N74) ->  | E78: =IF(入力シート!O74="","",入力シート!O74) ->  | F78: =IF(入力シート!P74="","",入力シート!P74) ->  | G78: =IF(入力シート!Q74="","",入力シート!Q74) ->  | M78: =入力シート!Z74 ->  | P78: =入力シート!AD74 -> 
B79: 68 | C79: =IF(入力シート!M75="","",入力シート!M75) ->  | D79: =IF(入力シート!N75="","",入力シート!N75) ->  | E79: =IF(入力シート!O75="","",入力シート!O75) ->  | F79: =IF(入力シート!P75="","",入力シート!P75) ->  | G79: =IF(入力シート!Q75="","",入力シート!Q75) ->  | I79: =IF(入力シート!$R68>=4,入力シート!$S68,IF(入力シート!$R68=2,入力シート!$S68,"")) ->  | M79: =入力シート!Z75 ->  | P79: =入力シート!AD75 -> 
B80: 69 | C80: =IF(入力シート!M76="","",入力シート!M76) ->  | D80: =IF(入力シート!N76="","",入力シート!N76) ->  | E80: =IF(入力シート!O76="","",入力シート!O76) ->  | F80: =IF(入力シート!P76="","",入力シート!P76) ->  | G80: =IF(入力シート!Q76="","",入力シート!Q76) ->  | I80: =IF(入力シート!$R68>=4,入力シート!$T68,IF(入力シート!$R68=2,入力シート!$T68,"")) ->  | M80: =入力シート!Z76 ->  | P80: =入力シート!AD76 -> 
B81: 70 | C81: =IF(入力シート!M77="","",入力シート!M77) ->  | D81: =IF(入力シート!N77="","",入力シート!N77) ->  | E81: =IF(入力シート!O77="","",入力シート!O77) ->  | F81: =IF(入力シート!P77="","",入力シート!P77) ->  | G81: =IF(入力シート!Q77="","",入力シート!Q77) ->  | M81: =入力シート!Z77 ->  | P81: =入力シート!AD77 -> 
B82: 小計 | E82: =IF(E72="","",10-COUNTBLANK(E72:E81)) ->  | F82: 筆 | G82: =IF(E72="","",SUM(G72:G81)) ->  | M82: =IF(E72="","",SUM(M72:M81)) ->  | P82: =IF(F72="","",SUM(P72:P81)) -> 
B83: 71 | C83: =IF(入力シート!M78="","",入力シート!M78) ->  | D83: =IF(入力シート!N78="","",入力シート!N78) ->  | E83: =IF(入力シート!O78="","",入力シート!O78) ->  | F83: =IF(入力シート!P78="","",入力シート!P78) ->  | G83: =IF(入力シート!Q78="","",入力シート!Q78) ->  | H83: =IF(C85="","","基幹３作業") ->  | I83: =IF(入力シート!$R78="","",IF(入力シート!$R78=5,"",IF(入力シート!$R78<=2,"1水稲 ①耕起・代掻②田植③収穫･脱穀",""))) ->  | J83: =IF(入力シート!V78="","",入力シート!V78) ->  | K83: =IF(入力シート!W78="","",入力シート!W78) ->  | L83: =IF(入力シート!X78="","",入力シート!X78) ->  | M83: =入力シート!Z78 ->  | N83: =IF(入力シート!AA78="","",入力シート!AA78) ->  | O83: =IF(入力シート!AB78="","",入力シート!AB78) ->  | P83: =入力シート!AD78 ->  | Q83: =IF(入力シート!AE78="","",入力シート!AE78) ->  | R83: =IF(入力シート!AF78="","",入力シート!AF78) ->  | S83: =IF(入力シート!F78="","",入力シート!F78) ->  | T83: =IF(入力シート!G78="","",入力シート!G78) ->  | U83: =IF(入力シート!I78="","",入力シート!I78) ->  | V83: =IF(入力シート!J78="","",入力シート!J78) -> 
B84: 72 | C84: =IF(入力シート!M79="","",入力シート!M79) ->  | D84: =IF(入力シート!N79="","",入力シート!N79) ->  | E84: =IF(入力シート!O79="","",入力シート!O79) ->  | F84: =IF(入力シート!P79="","",入力シート!P79) ->  | G84: =IF(入力シート!Q79="","",入力シート!Q79) ->  | M84: =入力シート!Z79 ->  | P84: =入力シート!AD79 -> 
B85: 73 | C85: =IF(入力シート!M80="","",入力シート!M80) ->  | D85: =IF(入力シート!N80="","",入力シート!N80) ->  | E85: =IF(入力シート!O80="","",入力シート!O80) ->  | F85: =IF(入力シート!P80="","",入力シート!P80) ->  | G85: =IF(入力シート!Q80="","",入力シート!Q80) ->  | M85: =入力シート!Z80 ->  | P85: =入力シート!AD80 -> 
B86: 74 | C86: =IF(入力シート!M81="","",入力シート!M81) ->  | D86: =IF(入力シート!N81="","",入力シート!N81) ->  | E86: =IF(入力シート!O81="","",入力シート!O81) ->  | F86: =IF(入力シート!P81="","",入力シート!P81) ->  | G86: =IF(入力シート!Q81="","",入力シート!Q81) ->  | I86: =IF(入力シート!$R78="","",IF(入力シート!$R78=5,"",IF(入力シート!$R78>=3,"2さとうきび➀耕起･整地②定植③株出管理④中耕･培土⑤収穫➅防除の内３作業",""))) ->  | M86: =入力シート!Z81 ->  | P86: =入力シート!AD81 -> 
B87: 75 | C87: =IF(入力シート!M82="","",入力シート!M82) ->  | D87: =IF(入力シート!N82="","",入力シート!N82) ->  | E87: =IF(入力シート!O82="","",入力シート!O82) ->  | F87: =IF(入力シート!P82="","",入力シート!P82) ->  | G87: =IF(入力シート!Q82="","",入力シート!Q82) ->  | M87: =入力シート!Z82 ->  | P87: =入力シート!AD82 -> 
B88: 76 | C88: =IF(入力シート!M83="","",入力シート!M83) ->  | D88: =IF(入力シート!N83="","",入力シート!N83) ->  | E88: =IF(入力シート!O83="","",入力シート!O83) ->  | F88: =IF(入力シート!P83="","",入力シート!P83) ->  | G88: =IF(入力シート!Q83="","",入力シート!Q83) ->  | M88: =入力シート!Z83 ->  | P88: =入力シート!AD83 -> 
B89: 77 | C89: =IF(入力シート!M84="","",入力シート!M84) ->  | D89: =IF(入力シート!N84="","",入力シート!N84) ->  | E89: =IF(入力シート!O84="","",入力シート!O84) ->  | F89: =IF(入力シート!P84="","",入力シート!P84) ->  | G89: =IF(入力シート!Q84="","",入力シート!Q84) ->  | M89: =入力シート!Z84 ->  | P89: =入力シート!AD84 -> 
B90: 78 | C90: =IF(入力シート!M85="","",入力シート!M85) ->  | D90: =IF(入力シート!N85="","",入力シート!N85) ->  | E90: =IF(入力シート!O85="","",入力シート!O85) ->  | F90: =IF(入力シート!P85="","",入力シート!P85) ->  | G90: =IF(入力シート!Q85="","",入力シート!Q85) ->  | I90: =IF(入力シート!$R78>=4,入力シート!$S78,IF(入力シート!$R78=2,入力シート!$S78,"")) ->  | M90: =入力シート!Z85 ->  | P90: =入力シート!AD85 -> 
B91: 79 | C91: =IF(入力シート!M86="","",入力シート!M86) ->  | D91: =IF(入力シート!N86="","",入力シート!N86) ->  | E91: =IF(入力シート!O86="","",入力シート!O86) ->  | F91: =IF(入力シート!P86="","",入力シート!P86) ->  | G91: =IF(入力シート!Q86="","",入力シート!Q86) ->  | I91: =IF(入力シート!$R78>=4,入力シート!$T78,IF(入力シート!$R78=2,入力シート!$T78,"")) ->  | M91: =入力シート!Z86 ->  | P91: =入力シート!AD86 -> 
B92: 80 | C92: =IF(入力シート!M87="","",入力シート!M87) ->  | D92: =IF(入力シート!N87="","",入力シート!N87) ->  | E92: =IF(入力シート!O87="","",入力シート!O87) ->  | F92: =IF(入力シート!P87="","",入力シート!P87) ->  | G92: =IF(入力シート!Q87="","",入力シート!Q87) ->  | M92: =入力シート!Z87 ->  | P92: =入力シート!AD87 -> 
B93: 小計 | E93: =IF(E83="","",10-COUNTBLANK(E83:E92)) ->  | F93: 筆 | G93: =IF(E83="","",SUM(G83:G92)) ->  | M93: =IF(E83="","",SUM(M83:M92)) ->  | P93: =IF(F83="","",SUM(P83:P92)) -> 
B94: 81 | C94: =IF(入力シート!M88="","",入力シート!M88) ->  | D94: =IF(入力シート!N88="","",入力シート!N88) ->  | E94: =IF(入力シート!O88="","",入力シート!O88) ->  | F94: =IF(入力シート!P88="","",入力シート!P88) ->  | G94: =IF(入力シート!Q88="","",入力シート!Q88) ->  | H94: =IF(C96="","","基幹３作業") ->  | I94: =IF(入力シート!$R88="","",IF(入力シート!$R88=5,"",IF(入力シート!$R88<=2,"1水稲 ①耕起・代掻②田植③収穫･脱穀",""))) ->  | J94: =IF(入力シート!V88="","",入力シート!V88) ->  | K94: =IF(入力シート!W88="","",入力シート!W88) ->  | L94: =IF(入力シート!X88="","",入力シート!X88) ->  | M94: =入力シート!Z88 ->  | N94: =IF(入力シート!AA88="","",入力シート!AA88) ->  | O94: =IF(入力シート!AB88="","",入力シート!AB88) ->  | P94: =入力シート!AD88 ->  | Q94: =IF(入力シート!AE88="","",入力シート!AE88) ->  | R94: =IF(入力シート!AF88="","",入力シート!AF88) ->  | S94: =IF(入力シート!F88="","",入力シート!F88) ->  | T94: =IF(入力シート!G88="","",入力シート!G88) ->  | U94: =IF(入力シート!I88="","",入力シート!I88) ->  | V94: =IF(入力シート!J88="","",入力シート!J88) -> 
B95: 82 | C95: =IF(入力シート!M89="","",入力シート!M89) ->  | D95: =IF(入力シート!N89="","",入力シート!N89) ->  | E95: =IF(入力シート!O89="","",入力シート!O89) ->  | F95: =IF(入力シート!P89="","",入力シート!P89) ->  | G95: =IF(入力シート!Q89="","",入力シート!Q89) ->  | M95: =入力シート!Z89 ->  | P95: =入力シート!AD89 -> 
B96: 83 | C96: =IF(入力シート!M90="","",入力シート!M90) ->  | D96: =IF(入力シート!N90="","",入力シート!N90) ->  | E96: =IF(入力シート!O90="","",入力シート!O90) ->  | F96: =IF(入力シート!P90="","",入力シート!P90) ->  | G96: =IF(入力シート!Q90="","",入力シート!Q90) ->  | M96: =入力シート!Z90 ->  | P96: =入力シート!AD90 -> 
B97: 84 | C97: =IF(入力シート!M91="","",入力シート!M91) ->  | D97: =IF(入力シート!N91="","",入力シート!N91) ->  | E97: =IF(入力シート!O91="","",入力シート!O91) ->  | F97: =IF(入力シート!P91="","",入力シート!P91) ->  | G97: =IF(入力シート!Q91="","",入力シート!Q91) ->  | I97: =IF(入力シート!$R88="","",IF(入力シート!$R88=5,"",IF(入力シート!$R88>=3,"2さとうきび➀耕起･整地②定植③株出管理④中耕･培土⑤収穫➅防除の内３作業",""))) ->  | M97: =入力シート!Z91 ->  | P97: =入力シート!AD91 -> 
B98: 85 | C98: =IF(入力シート!M92="","",入力シート!M92) ->  | D98: =IF(入力シート!N92="","",入力シート!N92) ->  | E98: =IF(入力シート!O92="","",入力シート!O92) ->  | F98: =IF(入力シート!P92="","",入力シート!P92) ->  | G98: =IF(入力シート!Q92="","",入力シート!Q92) ->  | M98: =入力シート!Z92 ->  | P98: =入力シート!AD92 -> 
B99: 86 | C99: =IF(入力シート!M93="","",入力シート!M93) ->  | D99: =IF(入力シート!N93="","",入力シート!N93) ->  | E99: =IF(入力シート!O93="","",入力シート!O93) ->  | F99: =IF(入力シート!P93="","",入力シート!P93) ->  | G99: =IF(入力シート!Q93="","",入力シート!Q93) ->  | M99: =入力シート!Z93 ->  | P99: =入力シート!AD93 -> 
B100: 87 | C100: =IF(入力シート!M94="","",入力シート!M94) ->  | D100: =IF(入力シート!N94="","",入力シート!N94) ->  | E100: =IF(入力シート!O94="","",入力シート!O94) ->  | F100: =IF(入力シート!P94="","",入力シート!P94) ->  | G100: =IF(入力シート!Q94="","",入力シート!Q94) ->  | M100: =入力シート!Z94 ->  | P100: =入力シート!AD94 -> 
B101: 88 | C101: =IF(入力シート!M95="","",入力シート!M95) ->  | D101: =IF(入力シート!N95="","",入力シート!N95) ->  | E101: =IF(入力シート!O95="","",入力シート!O95) ->  | F101: =IF(入力シート!P95="","",入力シート!P95) ->  | G101: =IF(入力シート!Q95="","",入力シート!Q95) ->  | I101: =IF(入力シート!$R88>=4,入力シート!$S88,IF(入力シート!$R88=2,入力シート!$S88,"")) ->  | M101: =入力シート!Z95 ->  | P101: =入力シート!AD95 -> 
B102: 89 | C102: =IF(入力シート!M96="","",入力シート!M96) ->  | D102: =IF(入力シート!N96="","",入力シート!N96) ->  | E102: =IF(入力シート!O96="","",入力シート!O96) ->  | F102: =IF(入力シート!P96="","",入力シート!P96) ->  | G102: =IF(入力シート!Q96="","",入力シート!Q96) ->  | I102: =IF(入力シート!$R88>=4,入力シート!$T88,IF(入力シート!$R88=2,入力シート!$T88,"")) ->  | M102: =入力シート!Z96 ->  | P102: =入力シート!AD96 -> 
B103: 90 | C103: =IF(入力シート!M97="","",入力シート!M97) ->  | D103: =IF(入力シート!N97="","",入力シート!N97) ->  | E103: =IF(入力シート!O97="","",入力シート!O97) ->  | F103: =IF(入力シート!P97="","",入力シート!P97) ->  | G103: =IF(入力シート!Q97="","",入力シート!Q97) ->  | M103: =入力シート!Z97 ->  | P103: =入力シート!AD97 -> 
B104: 小計 | E104: =IF(E94="","",10-COUNTBLANK(E94:E103)) ->  | F104: 筆 | G104: =IF(E94="","",SUM(G94:G103)) ->  | M104: =IF(E94="","",SUM(M94:M103)) ->  | P104: =IF(F94="","",SUM(P94:P103)) -> 
B105: 91 | C105: =IF(入力シート!M98="","",入力シート!M98) ->  | D105: =IF(入力シート!N98="","",入力シート!N98) ->  | E105: =IF(入力シート!O98="","",入力シート!O98) ->  | F105: =IF(入力シート!P98="","",入力シート!P98) ->  | G105: =IF(入力シート!Q98="","",入力シート!Q98) ->  | H105: =IF(C107="","","基幹３作業") ->  | I105: =IF(入力シート!$R98="","",IF(入力シート!$R98=5,"",IF(入力シート!$R98<=2,"1水稲 ①耕起・代掻②田植③収穫･脱穀",""))) ->  | J105: =IF(入力シート!V98="","",入力シート!V98) ->  | K105: =IF(入力シート!W98="","",入力シート!W98) ->  | L105: =IF(入力シート!X98="","",入力シート!X98) ->  | M105: =入力シート!Z98 ->  | N105: =IF(入力シート!AA98="","",入力シート!AA98) ->  | O105: =IF(入力シート!AB98="","",入力シート!AB98) ->  | P105: =入力シート!AD98 ->  | Q105: =IF(入力シート!AE98="","",入力シート!AE98) ->  | R105: =IF(入力シート!AF98="","",入力シート!AF98) ->  | S105: =IF(入力シート!F98="","",入力シート!F98) ->  | T105: =IF(入力シート!G98="","",入力シート!G98) ->  | U105: =IF(入力シート!I98="","",入力シート!I98) ->  | V105: =IF(入力シート!J98="","",入力シート!J98) -> 
B106: 92 | C106: =IF(入力シート!M99="","",入力シート!M99) ->  | D106: =IF(入力シート!N99="","",入力シート!N99) ->  | E106: =IF(入力シート!O99="","",入力シート!O99) ->  | F106: =IF(入力シート!P99="","",入力シート!P99) ->  | G106: =IF(入力シート!Q99="","",入力シート!Q99) ->  | M106: =入力シート!Z99 ->  | P106: =入力シート!AD99 -> 
B107: 93 | C107: =IF(入力シート!M100="","",入力シート!M100) ->  | D107: =IF(入力シート!N100="","",入力シート!N100) ->  | E107: =IF(入力シート!O100="","",入力シート!O100) ->  | F107: =IF(入力シート!P100="","",入力シート!P100) ->  | G107: =IF(入力シート!Q100="","",入力シート!Q100) ->  | M107: =入力シート!Z100 ->  | P107: =入力シート!AD100 -> 
B108: 94 | C108: =IF(入力シート!M101="","",入力シート!M101) ->  | D108: =IF(入力シート!N101="","",入力シート!N101) ->  | E108: =IF(入力シート!O101="","",入力シート!O101) ->  | F108: =IF(入力シート!P101="","",入力シート!P101) ->  | G108: =IF(入力シート!Q101="","",入力シート!Q101) ->  | I108: =IF(入力シート!$R98="","",IF(入力シート!$R98=5,"",IF(入力シート!$R98>=3,"2さとうきび➀耕起･整地②定植③株出管理④中耕･培土⑤収穫➅防除の内３作業",""))) ->  | M108: =入力シート!Z101 ->  | P108: =入力シート!AD101 -> 
B109: 95 | C109: =IF(入力シート!M102="","",入力シート!M102) ->  | D109: =IF(入力シート!N102="","",入力シート!N102) ->  | E109: =IF(入力シート!O102="","",入力シート!O102) ->  | F109: =IF(入力シート!P102="","",入力シート!P102) ->  | G109: =IF(入力シート!Q102="","",入力シート!Q102) ->  | M109: =入力シート!Z102 ->  | P109: =入力シート!AD102 -> 
B110: 96 | C110: =IF(入力シート!M103="","",入力シート!M103) ->  | D110: =IF(入力シート!N103="","",入力シート!N103) ->  | E110: =IF(入力シート!O103="","",入力シート!O103) ->  | F110: =IF(入力シート!P103="","",入力シート!P103) ->  | G110: =IF(入力シート!Q103="","",入力シート!Q103) ->  | M110: =入力シート!Z103 ->  | P110: =入力シート!AD103 -> 
B111: 97 | C111: =IF(入力シート!M104="","",入力シート!M104) ->  | D111: =IF(入力シート!N104="","",入力シート!N104) ->  | E111: =IF(入力シート!O104="","",入力シート!O104) ->  | F111: =IF(入力シート!P104="","",入力シート!P104) ->  | G111: =IF(入力シート!Q104="","",入力シート!Q104) ->  | M111: =入力シート!Z104 ->  | P111: =入力シート!AD104 -> 
B112: 98 | C112: =IF(入力シート!M105="","",入力シート!M105) ->  | D112: =IF(入力シート!N105="","",入力シート!N105) ->  | E112: =IF(入力シート!O105="","",入力シート!O105) ->  | F112: =IF(入力シート!P105="","",入力シート!P105) ->  | G112: =IF(入力シート!Q105="","",入力シート!Q105) ->  | I112: =IF(入力シート!$R98>=4,入力シート!$S98,IF(入力シート!$R98=2,入力シート!$S98,"")) ->  | M112: =入力シート!Z105 ->  | P112: =入力シート!AD105 -> 
B113: 99 | C113: =IF(入力シート!M106="","",入力シート!M106) ->  | D113: =IF(入力シート!N106="","",入力シート!N106) ->  | E113: =IF(入力シート!O106="","",入力シート!O106) ->  | F113: =IF(入力シート!P106="","",入力シート!P106) ->  | G113: =IF(入力シート!Q106="","",入力シート!Q106) ->  | I113: =IF(入力シート!$R98>=4,入力シート!$T98,IF(入力シート!$R98=2,入力シート!$T98,"")) ->  | M113: =入力シート!Z106 ->  | P113: =入力シート!AD106 -> 
B114: 100 | C114: =IF(入力シート!M107="","",入力シート!M107) ->  | D114: =IF(入力シート!N107="","",入力シート!N107) ->  | E114: =IF(入力シート!O107="","",入力シート!O107) ->  | F114: =IF(入力シート!P107="","",入力シート!P107) ->  | G114: =IF(入力シート!Q107="","",入力シート!Q107) ->  | M114: =入力シート!Z107 ->  | P114: =入力シート!AD107 -> 
B115: 小計 | E115: =IF(E105="","",10-COUNTBLANK(E105:E114)) ->  | F115: 筆 | G115: =IF(E105="","",SUM(G105:G114)) ->  | M115: =IF(E105="","",SUM(M105:M114)) ->  | P115: =IF(F105="","",SUM(P105:P114)) -> 
B116: 101 | C116: =IF(入力シート!M108="","",入力シート!M108) ->  | D116: =IF(入力シート!N108="","",入力シート!N108) ->  | E116: =IF(入力シート!O108="","",入力シート!O108) ->  | F116: =IF(入力シート!P108="","",入力シート!P108) ->  | G116: =IF(入力シート!Q108="","",入力シート!Q108) ->  | H116: =IF(C118="","","基幹３作業") ->  | I116: =IF(入力シート!$R108="","",IF(入力シート!$R108=5,"",IF(入力シート!$R108<=2,"1水稲 ①耕起・代掻②田植③収穫･脱穀",""))) ->  | J116: =IF(入力シート!V108="","",入力シート!V108) ->  | K116: =IF(入力シート!W108="","",入力シート!W108) ->  | L116: =IF(入力シート!X108="","",入力シート!X108) ->  | M116: =入力シート!Z108 ->  | N116: =IF(入力シート!AA108="","",入力シート!AA108) ->  | O116: =IF(入力シート!AB108="","",入力シート!AB108) ->  | P116: =入力シート!AD108 ->  | Q116: =IF(入力シート!AE108="","",入力シート!AE108) ->  | R116: =IF(入力シート!AF108="","",入力シート!AF108) ->  | S116: =IF(入力シート!F108="","",入力シート!F108) ->  | T116: =IF(入力シート!G108="","",入力シート!G108) ->  | U116: =IF(入力シート!I108="","",入力シート!I108) ->  | V116: =IF(入力シート!J108="","",入力シート!J108) -> 
B117: 102 | C117: =IF(入力シート!M109="","",入力シート!M109) ->  | D117: =IF(入力シート!N109="","",入力シート!N109) ->  | E117: =IF(入力シート!O109="","",入力シート!O109) ->  | F117: =IF(入力シート!P109="","",入力シート!P109) ->  | G117: =IF(入力シート!Q109="","",入力シート!Q109) ->  | M117: =入力シート!Z109 ->  | P117: =入力シート!AD109 -> 
B118: 103 | C118: =IF(入力シート!M110="","",入力シート!M110) ->  | D118: =IF(入力シート!N110="","",入力シート!N110) ->  | E118: =IF(入力シート!O110="","",入力シート!O110) ->  | F118: =IF(入力シート!P110="","",入力シート!P110) ->  | G118: =IF(入力シート!Q110="","",入力シート!Q110) ->  | M118: =入力シート!Z110 ->  | P118: =入力シート!AD110 -> 
B119: 104 | C119: =IF(入力シート!M111="","",入力シート!M111) ->  | D119: =IF(入力シート!N111="","",入力シート!N111) ->  | E119: =IF(入力シート!O111="","",入力シート!O111) ->  | F119: =IF(入力シート!P111="","",入力シート!P111) ->  | G119: =IF(入力シート!Q111="","",入力シート!Q111) ->  | I119: =IF(入力シート!$R108="","",IF(入力シート!$R108=5,"",IF(入力シート!$R108>=3,"2さとうきび➀耕起･整地②定植③株出管理④中耕･培土⑤収穫➅防除の内３作業",""))) ->  | M119: =入力シート!Z111 ->  | P119: =入力シート!AD111 -> 
B120: 105 | C120: =IF(入力シート!M112="","",入力シート!M112) ->  | D120: =IF(入力シート!N112="","",入力シート!N112) ->  | E120: =IF(入力シート!O112="","",入力シート!O112) ->  | F120: =IF(入力シート!P112="","",入力シート!P112) ->  | G120: =IF(入力シート!Q112="","",入力シート!Q112) ->  | M120: =入力シート!Z112 ->  | P120: =入力シート!AD112 -> 
B121: 106 | C121: =IF(入力シート!M113="","",入力シート!M113) ->  | D121: =IF(入力シート!N113="","",入力シート!N113) ->  | E121: =IF(入力シート!O113="","",入力シート!O113) ->  | F121: =IF(入力シート!P113="","",入力シート!P113) ->  | G121: =IF(入力シート!Q113="","",入力シート!Q113) ->  | M121: =入力シート!Z113 ->  | P121: =入力シート!AD113 -> 
B122: 107 | C122: =IF(入力シート!M114="","",入力シート!M114) ->  | D122: =IF(入力シート!N114="","",入力シート!N114) ->  | E122: =IF(入力シート!O114="","",入力シート!O114) ->  | F122: =IF(入力シート!P114="","",入力シート!P114) ->  | G122: =IF(入力シート!Q114="","",入力シート!Q114) ->  | M122: =入力シート!Z114 ->  | P122: =入力シート!AD114 -> 
B123: 108 | C123: =IF(入力シート!M115="","",入力シート!M115) ->  | D123: =IF(入力シート!N115="","",入力シート!N115) ->  | E123: =IF(入力シート!O115="","",入力シート!O115) ->  | F123: =IF(入力シート!P115="","",入力シート!P115) ->  | G123: =IF(入力シート!Q115="","",入力シート!Q115) ->  | I123: =IF(入力シート!$R108>=4,入力シート!$S108,IF(入力シート!$R108=2,入力シート!$S108,"")) ->  | M123: =入力シート!Z115 ->  | P123: =入力シート!AD115 -> 
B124: 109 | C124: =IF(入力シート!M116="","",入力シート!M116) ->  | D124: =IF(入力シート!N116="","",入力シート!N116) ->  | E124: =IF(入力シート!O116="","",入力シート!O116) ->  | F124: =IF(入力シート!P116="","",入力シート!P116) ->  | G124: =IF(入力シート!Q116="","",入力シート!Q116) ->  | I124: =IF(入力シート!$R108>=4,入力シート!$T108,IF(入力シート!$R108=2,入力シート!$T108,"")) ->  | M124: =入力シート!Z116 ->  | P124: =入力シート!AD116 -> 
B125: 110 | C125: =IF(入力シート!M117="","",入力シート!M117) ->  | D125: =IF(入力シート!N117="","",入力シート!N117) ->  | E125: =IF(入力シート!O117="","",入力シート!O117) ->  | F125: =IF(入力シート!P117="","",入力シート!P117) ->  | G125: =IF(入力シート!Q117="","",入力シート!Q117) ->  | M125: =入力シート!Z117 ->  | P125: =入力シート!AD117 -> 
B126: 小計 | E126: =IF(E116="","",10-COUNTBLANK(E116:E125)) ->  | F126: 筆 | G126: =IF(E116="","",SUM(G116:G125)) ->  | M126: =IF(E116="","",SUM(M116:M125)) ->  | P126: =IF(F116="","",SUM(P116:P125)) -> 
B127: 111 | C127: =IF(入力シート!M118="","",入力シート!M118) ->  | D127: =IF(入力シート!N118="","",入力シート!N118) ->  | E127: =IF(入力シート!O118="","",入力シート!O118) ->  | F127: =IF(入力シート!P118="","",入力シート!P118) ->  | G127: =IF(入力シート!Q118="","",入力シート!Q118) ->  | H127: =IF(C129="","","基幹３作業") ->  | I127: =IF(入力シート!$R118="","",IF(入力シート!$R118=5,"",IF(入力シート!$R118<=2,"1水稲 ①耕起・代掻②田植③収穫･脱穀",""))) ->  | J127: =IF(入力シート!V118="","",入力シート!V118) ->  | K127: =IF(入力シート!W118="","",入力シート!W118) ->  | L127: =IF(入力シート!X118="","",入力シート!X118) ->  | M127: =入力シート!Z118 ->  | N127: =IF(入力シート!AA118="","",入力シート!AA118) ->  | O127: =IF(入力シート!AB118="","",入力シート!AB118) ->  | P127: =入力シート!AD118 ->  | Q127: =IF(入力シート!AE118="","",入力シート!AE118) ->  | R127: =IF(入力シート!AF118="","",入力シート!AF118) ->  | S127: =IF(入力シート!F118="","",入力シート!F118) ->  | T127: =IF(入力シート!G118="","",入力シート!G118) ->  | U127: =IF(入力シート!I118="","",入力シート!I118) ->  | V127: =IF(入力シート!J118="","",入力シート!J118) -> 
B128: 112 | C128: =IF(入力シート!M119="","",入力シート!M119) ->  | D128: =IF(入力シート!N119="","",入力シート!N119) ->  | E128: =IF(入力シート!O119="","",入力シート!O119) ->  | F128: =IF(入力シート!P119="","",入力シート!P119) ->  | G128: =IF(入力シート!Q119="","",入力シート!Q119) ->  | M128: =入力シート!Z119 ->  | P128: =入力シート!AD119 -> 
B129: 113 | C129: =IF(入力シート!M120="","",入力シート!M120) ->  | D129: =IF(入力シート!N120="","",入力シート!N120) ->  | E129: =IF(入力シート!O120="","",入力シート!O120) ->  | F129: =IF(入力シート!P120="","",入力シート!P120) ->  | G129: =IF(入力シート!Q120="","",入力シート!Q120) ->  | M129: =入力シート!Z120 ->  | P129: =入力シート!AD120 -> 
B130: 114 | C130: =IF(入力シート!M121="","",入力シート!M121) ->  | D130: =IF(入力シート!N121="","",入力シート!N121) ->  | E130: =IF(入力シート!O121="","",入力シート!O121) ->  | F130: =IF(入力シート!P121="","",入力シート!P121) ->  | G130: =IF(入力シート!Q121="","",入力シート!Q121) ->  | I130: =IF(入力シート!$R118="","",IF(入力シート!$R118=5,"",IF(入力シート!$R118>=3,"2さとうきび➀耕起･整地②定植③株出管理④中耕･培土⑤収穫➅防除の内３作業",""))) ->  | M130: =入力シート!Z121 ->  | P130: =入力シート!AD121 -> 
B131: 115 | C131: =IF(入力シート!M122="","",入力シート!M122) ->  | D131: =IF(入力シート!N122="","",入力シート!N122) ->  | E131: =IF(入力シート!O122="","",入力シート!O122) ->  | F131: =IF(入力シート!P122="","",入力シート!P122) ->  | G131: =IF(入力シート!Q122="","",入力シート!Q122) ->  | M131: =入力シート!Z122 ->  | P131: =入力シート!AD122 -> 
B132: 116 | C132: =IF(入力シート!M123="","",入力シート!M123) ->  | D132: =IF(入力シート!N123="","",入力シート!N123) ->  | E132: =IF(入力シート!O123="","",入力シート!O123) ->  | F132: =IF(入力シート!P123="","",入力シート!P123) ->  | G132: =IF(入力シート!Q123="","",入力シート!Q123) ->  | M132: =入力シート!Z123 ->  | P132: =入力シート!AD123 -> 
B133: 117 | C133: =IF(入力シート!M124="","",入力シート!M124) ->  | D133: =IF(入力シート!N124="","",入力シート!N124) ->  | E133: =IF(入力シート!O124="","",入力シート!O124) ->  | F133: =IF(入力シート!P124="","",入力シート!P124) ->  | G133: =IF(入力シート!Q124="","",入力シート!Q124) ->  | M133: =入力シート!Z124 ->  | P133: =入力シート!AD124 -> 
B134: 118 | C134: =IF(入力シート!M125="","",入力シート!M125) ->  | D134: =IF(入力シート!N125="","",入力シート!N125) ->  | E134: =IF(入力シート!O125="","",入力シート!O125) ->  | F134: =IF(入力シート!P125="","",入力シート!P125) ->  | G134: =IF(入力シート!Q125="","",入力シート!Q125) ->  | I134: =IF(入力シート!$R118>=4,入力シート!$S118,IF(入力シート!$R118=2,入力シート!$S118,"")) ->  | M134: =入力シート!Z125 ->  | P134: =入力シート!AD125 -> 
B135: 119 | C135: =IF(入力シート!M126="","",入力シート!M126) ->  | D135: =IF(入力シート!N126="","",入力シート!N126) ->  | E135: =IF(入力シート!O126="","",入力シート!O126) ->  | F135: =IF(入力シート!P126="","",入力シート!P126) ->  | G135: =IF(入力シート!Q126="","",入力シート!Q126) ->  | I135: =IF(入力シート!$R118>=4,入力シート!$T118,IF(入力シート!$R118=2,入力シート!$T118,"")) ->  | M135: =入力シート!Z126 ->  | P135: =入力シート!AD126 -> 
B136: 120 | C136: =IF(入力シート!M127="","",入力シート!M127) ->  | D136: =IF(入力シート!N127="","",入力シート!N127) ->  | E136: =IF(入力シート!O127="","",入力シート!O127) ->  | F136: =IF(入力シート!P127="","",入力シート!P127) ->  | G136: =IF(入力シート!Q127="","",入力シート!Q127) ->  | M136: =入力シート!Z127 ->  | P136: =入力シート!AD127 -> 
B137: 小計 | E137: =IF(E127="","",10-COUNTBLANK(E127:E136)) ->  | F137: 筆 | G137: =IF(E127="","",SUM(G127:G136)) ->  | M137: =IF(E127="","",SUM(M127:M136)) ->  | P137: =IF(F127="","",SUM(P127:P136)) -> 
B138: 121 | C138: =IF(入力シート!M128="","",入力シート!M128) ->  | D138: =IF(入力シート!N128="","",入力シート!N128) ->  | E138: =IF(入力シート!O128="","",入力シート!O128) ->  | F138: =IF(入力シート!P128="","",入力シート!P128) ->  | G138: =IF(入力シート!Q128="","",入力シート!Q128) ->  | H138: =IF(C140="","","基幹３作業") ->  | I138: =IF(入力シート!$R128="","",IF(入力シート!$R128=5,"",IF(入力シート!$R128<=2,"1水稲 ①耕起・代掻②田植③収穫･脱穀",""))) ->  | J138: =IF(入力シート!V128="","",入力シート!V128) ->  | K138: =IF(入力シート!W128="","",入力シート!W128) ->  | L138: =IF(入力シート!X128="","",入力シート!X128) ->  | M138: =入力シート!Z128 ->  | N138: =IF(入力シート!AA128="","",入力シート!AA128) ->  | O138: =IF(入力シート!AB128="","",入力シート!AB128) ->  | P138: =入力シート!AD128 ->  | Q138: =IF(入力シート!AE128="","",入力シート!AE128) ->  | R138: =IF(入力シート!AF128="","",入力シート!AF128) ->  | S138: =IF(入力シート!F128="","",入力シート!F128) ->  | T138: =IF(入力シート!G128="","",入力シート!G128) ->  | U138: =IF(入力シート!I128="","",入力シート!I128) ->  | V138: =IF(入力シート!J128="","",入力シート!J128) -> 
B139: 122 | C139: =IF(入力シート!M129="","",入力シート!M129) ->  | D139: =IF(入力シート!N129="","",入力シート!N129) ->  | E139: =IF(入力シート!O129="","",入力シート!O129) ->  | F139: =IF(入力シート!P129="","",入力シート!P129) ->  | G139: =IF(入力シート!Q129="","",入力シート!Q129) ->  | M139: =入力シート!Z129 ->  | P139: =入力シート!AD129 -> 
B140: 123 | C140: =IF(入力シート!M130="","",入力シート!M130) ->  | D140: =IF(入力シート!N130="","",入力シート!N130) ->  | E140: =IF(入力シート!O130="","",入力シート!O130) ->  | F140: =IF(入力シート!P130="","",入力シート!P130) ->  | G140: =IF(入力シート!Q130="","",入力シート!Q130) ->  | M140: =入力シート!Z130 ->  | P140: =入力シート!AD130 -> 
B141: 124 | C141: =IF(入力シート!M131="","",入力シート!M131) ->  | D141: =IF(入力シート!N131="","",入力シート!N131) ->  | E141: =IF(入力シート!O131="","",入力シート!O131) ->  | F141: =IF(入力シート!P131="","",入力シート!P131) ->  | G141: =IF(入力シート!Q131="","",入力シート!Q131) ->  | I141: =IF(入力シート!$R128="","",IF(入力シート!$R128=5,"",IF(入力シート!$R128>=3,"2さとうきび➀耕起･整地②定植③株出管理④中耕･培土⑤収穫➅防除の内３作業",""))) ->  | M141: =入力シート!Z131 ->  | P141: =入力シート!AD131 -> 
B142: 125 | C142: =IF(入力シート!M132="","",入力シート!M132) ->  | D142: =IF(入力シート!N132="","",入力シート!N132) ->  | E142: =IF(入力シート!O132="","",入力シート!O132) ->  | F142: =IF(入力シート!P132="","",入力シート!P132) ->  | G142: =IF(入力シート!Q132="","",入力シート!Q132) ->  | M142: =入力シート!Z132 ->  | P142: =入力シート!AD132 -> 
B143: 126 | C143: =IF(入力シート!M133="","",入力シート!M133) ->  | D143: =IF(入力シート!N133="","",入力シート!N133) ->  | E143: =IF(入力シート!O133="","",入力シート!O133) ->  | F143: =IF(入力シート!P133="","",入力シート!P133) ->  | G143: =IF(入力シート!Q133="","",入力シート!Q133) ->  | M143: =入力シート!Z133 ->  | P143: =入力シート!AD133 -> 
B144: 127 | C144: =IF(入力シート!M134="","",入力シート!M134) ->  | D144: =IF(入力シート!N134="","",入力シート!N134) ->  | E144: =IF(入力シート!O134="","",入力シート!O134) ->  | F144: =IF(入力シート!P134="","",入力シート!P134) ->  | G144: =IF(入力シート!Q134="","",入力シート!Q134) ->  | M144: =入力シート!Z134 ->  | P144: =入力シート!AD134 -> 
B145: 128 | C145: =IF(入力シート!M135="","",入力シート!M135) ->  | D145: =IF(入力シート!N135="","",入力シート!N135) ->  | E145: =IF(入力シート!O135="","",入力シート!O135) ->  | F145: =IF(入力シート!P135="","",入力シート!P135) ->  | G145: =IF(入力シート!Q135="","",入力シート!Q135) ->  | I145: =IF(入力シート!$R128>=4,入力シート!$S128,IF(入力シート!$R128=2,入力シート!$S128,"")) ->  | M145: =入力シート!Z135 ->  | P145: =入力シート!AD135 -> 
B146: 129 | C146: =IF(入力シート!M136="","",入力シート!M136) ->  | D146: =IF(入力シート!N136="","",入力シート!N136) ->  | E146: =IF(入力シート!O136="","",入力シート!O136) ->  | F146: =IF(入力シート!P136="","",入力シート!P136) ->  | G146: =IF(入力シート!Q136="","",入力シート!Q136) ->  | I146: =IF(入力シート!$R128>=4,入力シート!$T128,IF(入力シート!$R128=2,入力シート!$T128,"")) ->  | M146: =入力シート!Z136 ->  | P146: =入力シート!AD136 -> 
B147: 130 | C147: =IF(入力シート!M137="","",入力シート!M137) ->  | D147: =IF(入力シート!N137="","",入力シート!N137) ->  | E147: =IF(入力シート!O137="","",入力シート!O137) ->  | F147: =IF(入力シート!P137="","",入力シート!P137) ->  | G147: =IF(入力シート!Q137="","",入力シート!Q137) ->  | M147: =入力シート!Z137 ->  | P147: =入力シート!AD137 -> 
B148: 小計 | E148: =IF(E138="","",10-COUNTBLANK(E138:E147)) ->  | F148: 筆 | G148: =IF(E138="","",SUM(G138:G147)) ->  | M148: =IF(E138="","",SUM(M138:M147)) ->  | P148: =IF(F138="","",SUM(P138:P147)) -> 
B149: 131 | C149: =IF(入力シート!M138="","",入力シート!M138) ->  | D149: =IF(入力シート!N138="","",入力シート!N138) ->  | E149: =IF(入力シート!O138="","",入力シート!O138) ->  | F149: =IF(入力シート!P138="","",入力シート!P138) ->  | G149: =IF(入力シート!Q138="","",入力シート!Q138) ->  | H149: =IF(C151="","","基幹３作業") ->  | I149: =IF(入力シート!$R138="","",IF(入力シート!$R138=5,"",IF(入力シート!$R138<=2,"1水稲 ①耕起・代掻②田植③収穫･脱穀",""))) ->  | J149: =IF(入力シート!V138="","",入力シート!V138) ->  | K149: =IF(入力シート!W138="","",入力シート!W138) ->  | L149: =IF(入力シート!X138="","",入力シート!X138) ->  | M149: =入力シート!Z138 ->  | N149: =IF(入力シート!AA138="","",入力シート!AA138) ->  | O149: =IF(入力シート!AB138="","",入力シート!AB138) ->  | P149: =入力シート!AD138 ->  | Q149: =IF(入力シート!AE138="","",入力シート!AE138) ->  | R149: =IF(入力シート!AF138="","",入力シート!AF138) ->  | S149: =IF(入力シート!F138="","",入力シート!F138) ->  | T149: =IF(入力シート!G138="","",入力シート!G138) ->  | U149: =IF(入力シート!I138="","",入力シート!I138) ->  | V149: =IF(入力シート!J138="","",入力シート!J138) -> 
B150: 132 | C150: =IF(入力シート!M139="","",入力シート!M139) ->  | D150: =IF(入力シート!N139="","",入力シート!N139) ->  | E150: =IF(入力シート!O139="","",入力シート!O139) ->  | F150: =IF(入力シート!P139="","",入力シート!P139) ->  | G150: =IF(入力シート!Q139="","",入力シート!Q139) ->  | M150: =入力シート!Z139 ->  | P150: =入力シート!AD139 -> 
B151: 133 | C151: =IF(入力シート!M140="","",入力シート!M140) ->  | D151: =IF(入力シート!N140="","",入力シート!N140) ->  | E151: =IF(入力シート!O140="","",入力シート!O140) ->  | F151: =IF(入力シート!P140="","",入力シート!P140) ->  | G151: =IF(入力シート!Q140="","",入力シート!Q140) ->  | M151: =入力シート!Z140 ->  | P151: =入力シート!AD140 -> 
B152: 134 | C152: =IF(入力シート!M141="","",入力シート!M141) ->  | D152: =IF(入力シート!N141="","",入力シート!N141) ->  | E152: =IF(入力シート!O141="","",入力シート!O141) ->  | F152: =IF(入力シート!P141="","",入力シート!P141) ->  | G152: =IF(入力シート!Q141="","",入力シート!Q141) ->  | I152: =IF(入力シート!$R138="","",IF(入力シート!$R138=5,"",IF(入力シート!$R138>=3,"2さとうきび➀耕起･整地②定植③株出管理④中耕･培土⑤収穫➅防除の内３作業",""))) ->  | M152: =入力シート!Z141 ->  | P152: =入力シート!AD141 -> 
B153: 135 | C153: =IF(入力シート!M142="","",入力シート!M142) ->  | D153: =IF(入力シート!N142="","",入力シート!N142) ->  | E153: =IF(入力シート!O142="","",入力シート!O142) ->  | F153: =IF(入力シート!P142="","",入力シート!P142) ->  | G153: =IF(入力シート!Q142="","",入力シート!Q142) ->  | M153: =入力シート!Z142 ->  | P153: =入力シート!AD142 -> 
B154: 136 | C154: =IF(入力シート!M143="","",入力シート!M143) ->  | D154: =IF(入力シート!N143="","",入力シート!N143) ->  | E154: =IF(入力シート!O143="","",入力シート!O143) ->  | F154: =IF(入力シート!P143="","",入力シート!P143) ->  | G154: =IF(入力シート!Q143="","",入力シート!Q143) ->  | M154: =入力シート!Z143 ->  | P154: =入力シート!AD143 -> 
B155: 137 | C155: =IF(入力シート!M144="","",入力シート!M144) ->  | D155: =IF(入力シート!N144="","",入力シート!N144) ->  | E155: =IF(入力シート!O144="","",入力シート!O144) ->  | F155: =IF(入力シート!P144="","",入力シート!P144) ->  | G155: =IF(入力シート!Q144="","",入力シート!Q144) ->  | M155: =入力シート!Z144 ->  | P155: =入力シート!AD144 -> 
B156: 138 | C156: =IF(入力シート!M145="","",入力シート!M145) ->  | D156: =IF(入力シート!N145="","",入力シート!N145) ->  | E156: =IF(入力シート!O145="","",入力シート!O145) ->  | F156: =IF(入力シート!P145="","",入力シート!P145) ->  | G156: =IF(入力シート!Q145="","",入力シート!Q145) ->  | I156: =IF(入力シート!$R138>=4,入力シート!$S138,IF(入力シート!$R138=2,入力シート!$S138,"")) ->  | M156: =入力シート!Z145 ->  | P156: =入力シート!AD145 -> 
B157: 139 | C157: =IF(入力シート!M146="","",入力シート!M146) ->  | D157: =IF(入力シート!N146="","",入力シート!N146) ->  | E157: =IF(入力シート!O146="","",入力シート!O146) ->  | F157: =IF(入力シート!P146="","",入力シート!P146) ->  | G157: =IF(入力シート!Q146="","",入力シート!Q146) ->  | I157: =IF(入力シート!$R138>=4,入力シート!$T138,IF(入力シート!$R138=2,入力シート!$T138,"")) ->  | M157: =入力シート!Z146 ->  | P157: =入力シート!AD146 -> 
B158: 140 | C158: =IF(入力シート!M147="","",入力シート!M147) ->  | D158: =IF(入力シート!N147="","",入力シート!N147) ->  | E158: =IF(入力シート!O147="","",入力シート!O147) ->  | F158: =IF(入力シート!P147="","",入力シート!P147) ->  | G158: =IF(入力シート!Q147="","",入力シート!Q147) ->  | M158: =入力シート!Z147 ->  | P158: =入力シート!AD147 -> 
B159: 小計 | E159: =IF(E149="","",10-COUNTBLANK(E149:E158)) ->  | F159: 筆 | G159: =IF(E149="","",SUM(G149:G158)) ->  | M159: =IF(E149="","",SUM(M149:M158)) ->  | P159: =IF(F149="","",SUM(P149:P158)) -> 
B160: 141 | C160: =IF(入力シート!M148="","",入力シート!M148) ->  | D160: =IF(入力シート!N148="","",入力シート!N148) ->  | E160: =IF(入力シート!O148="","",入力シート!O148) ->  | F160: =IF(入力シート!P148="","",入力シート!P148) ->  | G160: =IF(入力シート!Q148="","",入力シート!Q148) ->  | H160: =IF(C162="","","基幹３作業") ->  | I160: =IF(入力シート!$R148="","",IF(入力シート!$R148=5,"",IF(入力シート!$R148<=2,"1水稲 ①耕起・代掻②田植③収穫･脱穀",""))) ->  | J160: =IF(入力シート!V148="","",入力シート!V148) ->  | K160: =IF(入力シート!W148="","",入力シート!W148) ->  | L160: =IF(入力シート!X148="","",入力シート!X148) ->  | M160: =入力シート!Z148 ->  | N160: =IF(入力シート!AA148="","",入力シート!AA148) ->  | O160: =IF(入力シート!AB148="","",入力シート!AB148) ->  | P160: =入力シート!AD148 ->  | Q160: =IF(入力シート!AE148="","",入力シート!AE148) ->  | R160: =IF(入力シート!AF148="","",入力シート!AF148) ->  | S160: =IF(入力シート!F148="","",入力シート!F148) ->  | T160: =IF(入力シート!G148="","",入力シート!G148) ->  | U160: =IF(入力シート!I148="","",入力シート!I148) ->  | V160: =IF(入力シート!J148="","",入力シート!J148) -> 
B161: 142 | C161: =IF(入力シート!M149="","",入力シート!M149) ->  | D161: =IF(入力シート!N149="","",入力シート!N149) ->  | E161: =IF(入力シート!O149="","",入力シート!O149) ->  | F161: =IF(入力シート!P149="","",入力シート!P149) ->  | G161: =IF(入力シート!Q149="","",入力シート!Q149) ->  | M161: =入力シート!Z149 ->  | P161: =入力シート!AD149 -> 
B162: 143 | C162: =IF(入力シート!M150="","",入力シート!M150) ->  | D162: =IF(入力シート!N150="","",入力シート!N150) ->  | E162: =IF(入力シート!O150="","",入力シート!O150) ->  | F162: =IF(入力シート!P150="","",入力シート!P150) ->  | G162: =IF(入力シート!Q150="","",入力シート!Q150) ->  | M162: =入力シート!Z150 ->  | P162: =入力シート!AD150 -> 
B163: 144 | C163: =IF(入力シート!M151="","",入力シート!M151) ->  | D163: =IF(入力シート!N151="","",入力シート!N151) ->  | E163: =IF(入力シート!O151="","",入力シート!O151) ->  | F163: =IF(入力シート!P151="","",入力シート!P151) ->  | G163: =IF(入力シート!Q151="","",入力シート!Q151) ->  | I163: =IF(入力シート!$R148="","",IF(入力シート!$R148=5,"",IF(入力シート!$R148>=3,"2さとうきび➀耕起･整地②定植③株出管理④中耕･培土⑤収穫➅防除の内３作業",""))) ->  | M163: =入力シート!Z151 ->  | P163: =入力シート!AD151 -> 
B164: 145 | C164: =IF(入力シート!M152="","",入力シート!M152) ->  | D164: =IF(入力シート!N152="","",入力シート!N152) ->  | E164: =IF(入力シート!O152="","",入力シート!O152) ->  | F164: =IF(入力シート!P152="","",入力シート!P152) ->  | G164: =IF(入力シート!Q152="","",入力シート!Q152) ->  | M164: =入力シート!Z152 ->  | P164: =入力シート!AD152 -> 
B165: 146 | C165: =IF(入力シート!M153="","",入力シート!M153) ->  | D165: =IF(入力シート!N153="","",入力シート!N153) ->  | E165: =IF(入力シート!O153="","",入力シート!O153) ->  | F165: =IF(入力シート!P153="","",入力シート!P153) ->  | G165: =IF(入力シート!Q153="","",入力シート!Q153) ->  | M165: =入力シート!Z153 ->  | P165: =入力シート!AD153 -> 
B166: 147 | C166: =IF(入力シート!M154="","",入力シート!M154) ->  | D166: =IF(入力シート!N154="","",入力シート!N154) ->  | E166: =IF(入力シート!O154="","",入力シート!O154) ->  | F166: =IF(入力シート!P154="","",入力シート!P154) ->  | G166: =IF(入力シート!Q154="","",入力シート!Q154) ->  | M166: =入力シート!Z154 ->  | P166: =入力シート!AD154 -> 
B167: 148 | C167: =IF(入力シート!M155="","",入力シート!M155) ->  | D167: =IF(入力シート!N155="","",入力シート!N155) ->  | E167: =IF(入力シート!O155="","",入力シート!O155) ->  | F167: =IF(入力シート!P155="","",入力シート!P155) ->  | G167: =IF(入力シート!Q155="","",入力シート!Q155) ->  | I167: =IF(入力シート!$R148>=4,入力シート!$S148,IF(入力シート!$R148=2,入力シート!$S148,"")) ->  | M167: =入力シート!Z155 ->  | P167: =入力シート!AD155 -> 
B168: 149 | C168: =IF(入力シート!M156="","",入力シート!M156) ->  | D168: =IF(入力シート!N156="","",入力シート!N156) ->  | E168: =IF(入力シート!O156="","",入力シート!O156) ->  | F168: =IF(入力シート!P156="","",入力シート!P156) ->  | G168: =IF(入力シート!Q156="","",入力シート!Q156) ->  | I168: =IF(入力シート!$R148>=4,入力シート!$T148,IF(入力シート!$R148=2,入力シート!$T148,"")) ->  | M168: =入力シート!Z156 ->  | P168: =入力シート!AD156 -> 
B169: 150 | C169: =IF(入力シート!M157="","",入力シート!M157) ->  | D169: =IF(入力シート!N157="","",入力シート!N157) ->  | E169: =IF(入力シート!O157="","",入力シート!O157) ->  | F169: =IF(入力シート!P157="","",入力シート!P157) ->  | G169: =IF(入力シート!Q157="","",入力シート!Q157) ->  | M169: =入力シート!Z157 ->  | P169: =入力シート!AD157 -> 
B170: 小計 | E170: =IF(E160="","",10-COUNTBLANK(E160:E169)) ->  | F170: 筆 | G170: =IF(E160="","",SUM(G160:G169)) ->  | M170: =IF(E160="","",SUM(M160:M169)) ->  | P170: =IF(F160="","",SUM(P160:P169)) -> 
B171: 151 | C171: =IF(入力シート!M158="","",入力シート!M158) ->  | D171: =IF(入力シート!N158="","",入力シート!N158) ->  | E171: =IF(入力シート!O158="","",入力シート!O158) ->  | F171: =IF(入力シート!P158="","",入力シート!P158) ->  | G171: =IF(入力シート!Q158="","",入力シート!Q158) ->  | H171: =IF(C173="","","基幹３作業") ->  | I171: =IF(入力シート!$R158="","",IF(入力シート!$R158=5,"",IF(入力シート!$R158<=2,"1水稲 ①耕起・代掻②田植③収穫･脱穀",""))) ->  | J171: =IF(入力シート!V158="","",入力シート!V158) ->  | K171: =IF(入力シート!W158="","",入力シート!W158) ->  | L171: =IF(入力シート!X158="","",入力シート!X158) ->  | M171: =入力シート!Z158 ->  | N171: =IF(入力シート!AA158="","",入力シート!AA158) ->  | O171: =IF(入力シート!AB158="","",入力シート!AB158) ->  | P171: =入力シート!AD158 ->  | Q171: =IF(入力シート!AE158="","",入力シート!AE158) ->  | R171: =IF(入力シート!AF158="","",入力シート!AF158) ->  | S171: =IF(入力シート!F158="","",入力シート!F158) ->  | T171: =IF(入力シート!G158="","",入力シート!G158) ->  | U171: =IF(入力シート!I158="","",入力シート!I158) ->  | V171: =IF(入力シート!J158="","",入力シート!J158) -> 
B172: 152 | C172: =IF(入力シート!M159="","",入力シート!M159) ->  | D172: =IF(入力シート!N159="","",入力シート!N159) ->  | E172: =IF(入力シート!O159="","",入力シート!O159) ->  | F172: =IF(入力シート!P159="","",入力シート!P159) ->  | G172: =IF(入力シート!Q159="","",入力シート!Q159) ->  | M172: =入力シート!Z159 ->  | P172: =入力シート!AD159 -> 
B173: 153 | C173: =IF(入力シート!M160="","",入力シート!M160) ->  | D173: =IF(入力シート!N160="","",入力シート!N160) ->  | E173: =IF(入力シート!O160="","",入力シート!O160) ->  | F173: =IF(入力シート!P160="","",入力シート!P160) ->  | G173: =IF(入力シート!Q160="","",入力シート!Q160) ->  | M173: =入力シート!Z160 ->  | P173: =入力シート!AD160 -> 
B174: 154 | C174: =IF(入力シート!M161="","",入力シート!M161) ->  | D174: =IF(入力シート!N161="","",入力シート!N161) ->  | E174: =IF(入力シート!O161="","",入力シート!O161) ->  | F174: =IF(入力シート!P161="","",入力シート!P161) ->  | G174: =IF(入力シート!Q161="","",入力シート!Q161) ->  | I174: =IF(入力シート!$R158="","",IF(入力シート!$R158=5,"",IF(入力シート!$R158>=3,"2さとうきび➀耕起･整地②定植③株出管理④中耕･培土⑤収穫➅防除の内３作業",""))) ->  | M174: =入力シート!Z161 ->  | P174: =入力シート!AD161 -> 
B175: 155 | C175: =IF(入力シート!M162="","",入力シート!M162) ->  | D175: =IF(入力シート!N162="","",入力シート!N162) ->  | E175: =IF(入力シート!O162="","",入力シート!O162) ->  | F175: =IF(入力シート!P162="","",入力シート!P162) ->  | G175: =IF(入力シート!Q162="","",入力シート!Q162) ->  | M175: =入力シート!Z162 ->  | P175: =入力シート!AD162 -> 
B176: 156 | C176: =IF(入力シート!M163="","",入力シート!M163) ->  | D176: =IF(入力シート!N163="","",入力シート!N163) ->  | E176: =IF(入力シート!O163="","",入力シート!O163) ->  | F176: =IF(入力シート!P163="","",入力シート!P163) ->  | G176: =IF(入力シート!Q163="","",入力シート!Q163) ->  | M176: =入力シート!Z163 ->  | P176: =入力シート!AD163 -> 
B177: 157 | C177: =IF(入力シート!M164="","",入力シート!M164) ->  | D177: =IF(入力シート!N164="","",入力シート!N164) ->  | E177: =IF(入力シート!O164="","",入力シート!O164) ->  | F177: =IF(入力シート!P164="","",入力シート!P164) ->  | G177: =IF(入力シート!Q164="","",入力シート!Q164) ->  | M177: =入力シート!Z164 ->  | P177: =入力シート!AD164 -> 
B178: 158 | C178: =IF(入力シート!M165="","",入力シート!M165) ->  | D178: =IF(入力シート!N165="","",入力シート!N165) ->  | E178: =IF(入力シート!O165="","",入力シート!O165) ->  | F178: =IF(入力シート!P165="","",入力シート!P165) ->  | G178: =IF(入力シート!Q165="","",入力シート!Q165) ->  | I178: =IF(入力シート!$R158>=4,入力シート!$S158,IF(入力シート!$R158=2,入力シート!$S158,"")) ->  | M178: =入力シート!Z165 ->  | P178: =入力シート!AD165 -> 
B179: 159 | C179: =IF(入力シート!M166="","",入力シート!M166) ->  | D179: =IF(入力シート!N166="","",入力シート!N166) ->  | E179: =IF(入力シート!O166="","",入力シート!O166) ->  | F179: =IF(入力シート!P166="","",入力シート!P166) ->  | G179: =IF(入力シート!Q166="","",入力シート!Q166) ->  | I179: =IF(入力シート!$R158>=4,入力シート!$T158,IF(入力シート!$R158=2,入力シート!$T158,"")) ->  | M179: =入力シート!Z166 ->  | P179: =入力シート!AD166 -> 
B180: 160 | C180: =IF(入力シート!M167="","",入力シート!M167) ->  | D180: =IF(入力シート!N167="","",入力シート!N167) ->  | E180: =IF(入力シート!O167="","",入力シート!O167) ->  | F180: =IF(入力シート!P167="","",入力シート!P167) ->  | G180: =IF(入力シート!Q167="","",入力シート!Q167) ->  | M180: =入力シート!Z167 ->  | P180: =入力シート!AD167 -> 
B181: 小計 | E181: =IF(E171="","",10-COUNTBLANK(E171:E180)) ->  | F181: 筆 | G181: =IF(E171="","",SUM(G171:G180)) ->  | M181: =IF(E171="","",SUM(M171:M180)) ->  | P181: =IF(F171="","",SUM(P171:P180)) -> 
B182: 161 | C182: =IF(入力シート!M168="","",入力シート!M168) ->  | D182: =IF(入力シート!N168="","",入力シート!N168) ->  | E182: =IF(入力シート!O168="","",入力シート!O168) ->  | F182: =IF(入力シート!P168="","",入力シート!P168) ->  | G182: =IF(入力シート!Q168="","",入力シート!Q168) ->  | H182: =IF(C184="","","基幹３作業") ->  | I182: =IF(入力シート!$R168="","",IF(入力シート!$R168=5,"",IF(入力シート!$R168<=2,"1水稲 ①耕起・代掻②田植③収穫･脱穀",""))) ->  | J182: =IF(入力シート!V168="","",入力シート!V168) ->  | K182: =IF(入力シート!W168="","",入力シート!W168) ->  | L182: =IF(入力シート!X168="","",入力シート!X168) ->  | M182: =入力シート!Z168 ->  | N182: =IF(入力シート!AA168="","",入力シート!AA168) ->  | O182: =IF(入力シート!AB168="","",入力シート!AB168) ->  | P182: =入力シート!AD168 ->  | Q182: =IF(入力シート!AE168="","",入力シート!AE168) ->  | R182: =IF(入力シート!AF168="","",入力シート!AF168) ->  | S182: =IF(入力シート!F168="","",入力シート!F168) ->  | T182: =IF(入力シート!G168="","",入力シート!G168) ->  | U182: =IF(入力シート!I168="","",入力シート!I168) ->  | V182: =IF(入力シート!J168="","",入力シート!J168) -> 
B183: 162 | C183: =IF(入力シート!M169="","",入力シート!M169) ->  | D183: =IF(入力シート!N169="","",入力シート!N169) ->  | E183: =IF(入力シート!O169="","",入力シート!O169) ->  | F183: =IF(入力シート!P169="","",入力シート!P169) ->  | G183: =IF(入力シート!Q169="","",入力シート!Q169) ->  | M183: =入力シート!Z169 ->  | P183: =入力シート!AD169 -> 
B184: 163 | C184: =IF(入力シート!M170="","",入力シート!M170) ->  | D184: =IF(入力シート!N170="","",入力シート!N170) ->  | E184: =IF(入力シート!O170="","",入力シート!O170) ->  | F184: =IF(入力シート!P170="","",入力シート!P170) ->  | G184: =IF(入力シート!Q170="","",入力シート!Q170) ->  | M184: =入力シート!Z170 ->  | P184: =入力シート!AD170 -> 
B185: 164 | C185: =IF(入力シート!M171="","",入力シート!M171) ->  | D185: =IF(入力シート!N171="","",入力シート!N171) ->  | E185: =IF(入力シート!O171="","",入力シート!O171) ->  | F185: =IF(入力シート!P171="","",入力シート!P171) ->  | G185: =IF(入力シート!Q171="","",入力シート!Q171) ->  | I185: =IF(入力シート!$R168="","",IF(入力シート!$R168=5,"",IF(入力シート!$R168>=3,"2さとうきび➀耕起･整地②定植③株出管理④中耕･培土⑤収穫➅防除の内３作業",""))) ->  | M185: =入力シート!Z171 ->  | P185: =入力シート!AD171 -> 
B186: 165 | C186: =IF(入力シート!M172="","",入力シート!M172) ->  | D186: =IF(入力シート!N172="","",入力シート!N172) ->  | E186: =IF(入力シート!O172="","",入力シート!O172) ->  | F186: =IF(入力シート!P172="","",入力シート!P172) ->  | G186: =IF(入力シート!Q172="","",入力シート!Q172) ->  | M186: =入力シート!Z172 ->  | P186: =入力シート!AD172 -> 
B187: 166 | C187: =IF(入力シート!M173="","",入力シート!M173) ->  | D187: =IF(入力シート!N173="","",入力シート!N173) ->  | E187: =IF(入力シート!O173="","",入力シート!O173) ->  | F187: =IF(入力シート!P173="","",入力シート!P173) ->  | G187: =IF(入力シート!Q173="","",入力シート!Q173) ->  | M187: =入力シート!Z173 ->  | P187: =入力シート!AD173 -> 
B188: 167 | C188: =IF(入力シート!M174="","",入力シート!M174) ->  | D188: =IF(入力シート!N174="","",入力シート!N174) ->  | E188: =IF(入力シート!O174="","",入力シート!O174) ->  | F188: =IF(入力シート!P174="","",入力シート!P174) ->  | G188: =IF(入力シート!Q174="","",入力シート!Q174) ->  | M188: =入力シート!Z174 ->  | P188: =入力シート!AD174 -> 
B189: 168 | C189: =IF(入力シート!M175="","",入力シート!M175) ->  | D189: =IF(入力シート!N175="","",入力シート!N175) ->  | E189: =IF(入力シート!O175="","",入力シート!O175) ->  | F189: =IF(入力シート!P175="","",入力シート!P175) ->  | G189: =IF(入力シート!Q175="","",入力シート!Q175) ->  | I189: =IF(入力シート!$R168>=4,入力シート!$S168,IF(入力シート!$R168=2,入力シート!$S168,"")) ->  | M189: =入力シート!Z175 ->  | P189: =入力シート!AD175 -> 
B190: 169 | C190: =IF(入力シート!M176="","",入力シート!M176) ->  | D190: =IF(入力シート!N176="","",入力シート!N176) ->  | E190: =IF(入力シート!O176="","",入力シート!O176) ->  | F190: =IF(入力シート!P176="","",入力シート!P176) ->  | G190: =IF(入力シート!Q176="","",入力シート!Q176) ->  | I190: =IF(入力シート!$R168>=4,入力シート!$T168,IF(入力シート!$R168=2,入力シート!$T168,"")) ->  | M190: =入力シート!Z176 ->  | P190: =入力シート!AD176 -> 
B191: 170 | C191: =IF(入力シート!M177="","",入力シート!M177) ->  | D191: =IF(入力シート!N177="","",入力シート!N177) ->  | E191: =IF(入力シート!O177="","",入力シート!O177) ->  | F191: =IF(入力シート!P177="","",入力シート!P177) ->  | G191: =IF(入力シート!Q177="","",入力シート!Q177) ->  | M191: =入力シート!Z177 ->  | P191: =入力シート!AD177 -> 
B192: 小計 | E192: =IF(E182="","",10-COUNTBLANK(E182:E191)) ->  | F192: 筆 | G192: =IF(E182="","",SUM(G182:G191)) ->  | M192: =IF(E182="","",SUM(M182:M191)) ->  | P192: =IF(F182="","",SUM(P182:P191)) -> 
B193: 171 | C193: =IF(入力シート!M178="","",入力シート!M178) ->  | D193: =IF(入力シート!N178="","",入力シート!N178) ->  | E193: =IF(入力シート!O178="","",入力シート!O178) ->  | F193: =IF(入力シート!P178="","",入力シート!P178) ->  | G193: =IF(入力シート!Q178="","",入力シート!Q178) ->  | H193: =IF(C195="","","基幹３作業") ->  | I193: =IF(入力シート!$R178="","",IF(入力シート!$R178=5,"",IF(入力シート!$R178<=2,"1水稲 ①耕起・代掻②田植③収穫･脱穀",""))) ->  | J193: =IF(入力シート!V178="","",入力シート!V178) ->  | K193: =IF(入力シート!W178="","",入力シート!W178) ->  | L193: =IF(入力シート!X178="","",入力シート!X178) ->  | M193: =入力シート!Z178 ->  | N193: =IF(入力シート!AA178="","",入力シート!AA178) ->  | O193: =IF(入力シート!AB178="","",入力シート!AB178) ->  | P193: =入力シート!AD178 ->  | Q193: =IF(入力シート!AE178="","",入力シート!AE178) ->  | R193: =IF(入力シート!AF178="","",入力シート!AF178) ->  | S193: =IF(入力シート!F178="","",入力シート!F178) ->  | T193: =IF(入力シート!G178="","",入力シート!G178) ->  | U193: =IF(入力シート!I178="","",入力シート!I178) ->  | V193: =IF(入力シート!J178="","",入力シート!J178) -> 
B194: 172 | C194: =IF(入力シート!M179="","",入力シート!M179) ->  | D194: =IF(入力シート!N179="","",入力シート!N179) ->  | E194: =IF(入力シート!O179="","",入力シート!O179) ->  | F194: =IF(入力シート!P179="","",入力シート!P179) ->  | G194: =IF(入力シート!Q179="","",入力シート!Q179) ->  | M194: =入力シート!Z179 ->  | P194: =入力シート!AD179 -> 
B195: 173 | C195: =IF(入力シート!M180="","",入力シート!M180) ->  | D195: =IF(入力シート!N180="","",入力シート!N180) ->  | E195: =IF(入力シート!O180="","",入力シート!O180) ->  | F195: =IF(入力シート!P180="","",入力シート!P180) ->  | G195: =IF(入力シート!Q180="","",入力シート!Q180) ->  | M195: =入力シート!Z180 ->  | P195: =入力シート!AD180 -> 
B196: 174 | C196: =IF(入力シート!M181="","",入力シート!M181) ->  | D196: =IF(入力シート!N181="","",入力シート!N181) ->  | E196: =IF(入力シート!O181="","",入力シート!O181) ->  | F196: =IF(入力シート!P181="","",入力シート!P181) ->  | G196: =IF(入力シート!Q181="","",入力シート!Q181) ->  | I196: =IF(入力シート!$R178="","",IF(入力シート!$R178=5,"",IF(入力シート!$R178>=3,"2さとうきび➀耕起･整地②定植③株出管理④中耕･培土⑤収穫➅防除の内３作業",""))) ->  | M196: =入力シート!Z181 ->  | P196: =入力シート!AD181 -> 
B197: 175 | C197: =IF(入力シート!M182="","",入力シート!M182) ->  | D197: =IF(入力シート!N182="","",入力シート!N182) ->  | E197: =IF(入力シート!O182="","",入力シート!O182) ->  | F197: =IF(入力シート!P182="","",入力シート!P182) ->  | G197: =IF(入力シート!Q182="","",入力シート!Q182) ->  | M197: =入力シート!Z182 ->  | P197: =入力シート!AD182 -> 
B198: 176 | C198: =IF(入力シート!M183="","",入力シート!M183) ->  | D198: =IF(入力シート!N183="","",入力シート!N183) ->  | E198: =IF(入力シート!O183="","",入力シート!O183) ->  | F198: =IF(入力シート!P183="","",入力シート!P183) ->  | G198: =IF(入力シート!Q183="","",入力シート!Q183) ->  | M198: =入力シート!Z183 ->  | P198: =入力シート!AD183 -> 
B199: 177 | C199: =IF(入力シート!M184="","",入力シート!M184) ->  | D199: =IF(入力シート!N184="","",入力シート!N184) ->  | E199: =IF(入力シート!O184="","",入力シート!O184) ->  | F199: =IF(入力シート!P184="","",入力シート!P184) ->  | G199: =IF(入力シート!Q184="","",入力シート!Q184) ->  | M199: =入力シート!Z184 ->  | P199: =入力シート!AD184 -> 
B200: 178 | C200: =IF(入力シート!M185="","",入力シート!M185) ->  | D200: =IF(入力シート!N185="","",入力シート!N185) ->  | E200: =IF(入力シート!O185="","",入力シート!O185) ->  | F200: =IF(入力シート!P185="","",入力シート!P185) ->  | G200: =IF(入力シート!Q185="","",入力シート!Q185) ->  | I200: =IF(入力シート!$R178>=4,入力シート!$S178,IF(入力シート!$R178=2,入力シート!$S178,"")) ->  | M200: =入力シート!Z185 ->  | P200: =入力シート!AD185 -> 
... 80 more rows
